Workbook

Sheet Sheet1
B1: Third Sector Advantage | AJ1: Property (Total Return) | AK1: Property (Growth) | AL1: Property (Income) | AM1: Shares | AN1: Inflation | AO1: Debt | AR1: Property Costs | AU1: Transaction Fees | AV1: =(AJ3*AS3)+(AS4*AJ4) -> 3.135537997 | AX1: Shares
B3: Purchase Date | C3: 1970-03-01 | AG3: Purchase Date | AJ3: =VLOOKUP(C3,AF20:AL204,3) -> 1 | AK3: =VLOOKUP(C3,AF20:AL204,2) -> 1 | AM3: =VLOOKUP(C3,AF20:AL204,5) -> 1 | AN3: =VLOOKUP(C3,AF20:AL204,6) -> 1 | AO3: =VLOOKUP(C3,AF20:AL204,7) -> 1 | AR3: Transaction fees on open: | AS3: =C13 -> 0.04 | AU3: Gross Rent (Cum) | AV3: =AL5 -> 23.59619363 | AX3: Brokerage Costs (Purchase) | AY3: =C22 -> 0.0037 | AZ3: =AY3*AY7 -> 0.0037 | BA3: =AZ3/AY$7 -> 0.0037 | BE3: =MIN(BE20:BE204) -> -0.02585395824 | BF3: =MIN(BF20:BF204) -> -0.1829070417
B4: Sale Date | C4: 2016-09-01 | AG4: Sale Date | AJ4: =VLOOKUP(C4,AF20:AL204,3) -> 77.38844992 | AK4: =VLOOKUP(C4,AF20:AL204,2) -> 53.79225629 | AM4: =VLOOKUP(C4,AF20:AL204,5) -> 76.07272766 | AN4: =VLOOKUP(C4,AF20:AL204,6) -> 11.04081633 | AO4: =VLOOKUP(C4,AF20:AL204,7) -> 39.03392055 | AR4: Transaction fees on close | AS4: =C14 -> 0.04 | AU4: Agent Fees | AV4: 0.15 | AX4: Brokerage Costs (Sale) | AY4: =C23 -> 0.0022 | AZ4: =AY4*AY8 -> 2.283653036 | BA4: 2.283653036 | BE4: =MAX(BE20:BE204) -> 0.1649488259 | BF4: =MAX(BF20:BF204) -> 0.371741564
AJ5: =(AJ4/AJ3)-1 -> 76.38844992 | AK5: =(AK4/AK3)-1 -> 52.79225629 | AL5: =AJ5-AK5 -> 23.59619363 | AM5: =(AM4/AM3)-1 -> 75.07272766 | AN5: =(AN4/AN3)-1 -> 10.04081633 | AO5: =(AO4/AO3)-1 -> 38.03392055 | AR5: Agent fees (%Rent) | AS5: =C15 -> 0.07 | AU5: Price Cumulative Open | AV5: =VLOOKUP(C3,AF20:AO204,10) -> 1 | AX5: Ongoing Management | AY5: =C24 -> 0.0037 | BA5: =AZ5/AY$7 -> 0 | BD5: Return | BH5: Property | BI5: Shares
AH6: Costs | AM6: =(AZ6/AY7)+((AH7/365)*C24) -> 2.459539886 | AO6: =(-C26+C27)*(AH7/365) -> -0.465369863 | AR6: Insurance (%gross property value) | AS6: =C18 -> 0.0015 | AU6: Price Cum Close | AV6: =VLOOKUP(C4,AF20:AO204,10) -> 763.3425953 | AY6: Total Cost: | AZ6: =SUM(AZ3:AZ4) -> 2.287353036 | BD6: -0.1 | BE6: =COUNTIF(BE$20:BE$206,"<"&$BD6) -> 0 | BF6: =COUNTIF(BF$20:BF$206,"<"&BD6) -> 10 | BG6: < -10% | BH6: =BE6 -> 0 | BI6: =BF6 -> 10
AG7: Days: | AH7: =(C4-C3) -> 16986 | AR7: Maintenance (% home value) | AS7: =C19 -> 0.006 | AU7: Ongoing Fees | AV7: =(AV6-AV5)*AS9 -> 7.414429731 | AX7: Price Cum Open | AY7: =VLOOKUP(C3,AF20:AP204,11) -> 1 | BD7: =BD6+5% -> -0.05 | BE7: 0 | BF7: 15 | BG7: =BD7 -> -0.05 | BH7: =BE7-BE6 -> 0 | BI7: =BF7-BF6 -> 5
AR8: Council Levies & Rates (%home value) | AS8: 0.00222585 | AX8: Price Cum Close | AY8: =VLOOKUP(C4,AF20:AP204,11) -> 1038.024107 | BD8: =BD7+5% -> 0 | BE8: 20 | BF8: 32 | BG8: =BD8 -> 0 | BH8: =BE8-BE7 -> 20 | BI8: =BF8-BF7 -> 17
AR9: **Total Ongoing (p.a.) | AS9: =SUM(AS6:AS8) -> 0.00972585 | AU9: Total Fees | AV9: =AV7+AV4+AV1 -> 10.69996773 | BD9: 0.05 | BE9: 154 | BF9: 132 | BG9: 0.05 | BH9: 134 | BI9: 100
B10: Assumptions | AJ10: Income | AK10: Growth | AL10: Costs | AM10: Total Return | AN10: Total Return After Gearing | BD10: 0.1 | BE10: =COUNTIF(BE$20:BE$206,"<"&$BD10) -> 179 | BF10: =COUNTIF(BF$20:BF$206,"<"&BD10) -> 164 | BG10: 0.1 | BH10: 25 | BI10: 32
BD11: =BD10+5% -> 0.15 | BE11: =COUNTIF(BE$20:BE$206,"<"&$BD11) -> 185 | BF11: =COUNTIF(BF$20:BF$206,"<"&BD11) -> 174 | BG11: =BD11 -> 0.15 | BH11: =BE11-BE10 -> 6 | BI11: =BF11-BF10 -> 10
B12: Property Costs | AH12: Property | AJ12: =(AL5-AL6)*(1-C16) -> 22.65234588 | AK12: =AK5 -> 52.79225629 | AL12: =-(AV9/AK3)-(AJ12*AS5) -> -12.28563194 | AM12: =SUM(AJ12:AL12) -> 63.15897023 | AN12: =AM12+AM$15 -> 24.65967982 | BD12: 0.2 | BE12: 186 | BF12: 179 | BG12: 0.2 | BH12: 1 | BI12: 5
B13: Costs on Purchase (Inc. Stamp Duty) | C13: 0.04 | AH13: Shares | AJ13: =(4.7%/AO13)*AM5 -> 36.17029052 | AK13: =AM5-AJ13 -> 38.90243713 | AL13: =-AM6 -> -2.459539886 | AM13: =SUM(AJ13:AL13) -> 72.61318777 | AN13: =AM13+AM$15 -> 34.11389736 | AO13: =(((AM5+1)^(1/AH7))^365)-1 -> 0.09755017582 | BD13: 0.25 | BE13: 186 | BF13: 183 | BG13: 0.25 | BH13: 0 | BI13: 4
B14: Costs on Sale | C14: 0.04 | AH14: Inflation | AK14: =AN5 -> 10.04081633 | AM14: =SUM(AJ14:AL14) -> 10.04081633 | BD14: 0.3 | BE14: 186 | BF14: 185 | BG14: > 30% | BH14: 0 | BI14: 3
B15: Agent Fees (% Gross Rent) | C15: 0.07 | AH15: Interest Costs | AL15: =AO6-AO5 -> -38.49929041 | AM15: =SUM(AJ15:AL15) -> -38.49929041 | BD15: 0.35 | BE15: 186 | BF15: 185 | BG15: 0.35 | BH15: 0 | BI15: 0
B16: Vacancy Rate (%) | C16: 0.04 | N16: 1 | O16: 2 | P16: 3 | Q16: 4 | R16: 5 | S16: 6 | T16: 7 | U16: 8 | V16: 9 | W16: 10 | X16: 11 | Z16: 12 | AA16: 13 | AD16: RBA RELEASE: FILRHLBVS | BD16: 0.4 | BE16: 186 | BF16: 186 | BG16: 0.4 | BH16: 0 | BI16: 1
B17: Ongoing Fees (% p.a. Property Value): | W17: ASX Total Return | X17: ASX Total Return | AD17: http://www.rba.gov.au/statistics/tables/index.html#interest-rates | AF17: 1 | AG17: 2 | AH17: 3 | AI17: 4 | AJ17: 5 | AK17: 6 | AL17: 7 | AM17: 8 | AO17: 10 | BD17: 0.45 | BE17: 186 | BF17: 186 | BG17: 0.45 | BH17: 0 | BI17: 0
B18: - Insurance | C18: 0.0015 | O18: http://www.econ.mq.edu.au/Econ_docs/research_papers2/2004_research_papers/Abelson_9_04.pdf | P18: Melbourne | U18: Property total Return | V18: http://www.abs.gov.au/AUSSTATS/abs@.nsf/DetailsPage/6401.0Jun%202015?OpenDocument | W18: Australia - total return | X18: Australia - total return | AD18: Standard Variable Interest Rate | AG18: Prices | BE18: Quarterly Returns
B19: - Maintenance | C19: 0.006 | O19: Melbourne house prices-MQ research | P19: Price Index | Q19: Rent | R19: Rental Yield (Gross) | S19: Rent (Cum) | T19: Total Return (Cum) | U19: Total Return | V19: Inflation | W19: ASX Total Return | X19: 2002 onwards | Z19: 1970 to 2002 | AA19: Debt Capitalised | AB19: Interest Rate Paid | AG19: Melbourne Residential Homes - Price | AH19: Melbourne Home Prices (Nominal) | AI19: Melbourne Residential Property - Investment Return (Net Fees) | AJ19: Australian Shares - Total Return | AK19: Inflation | AL19: Interest Expenses (investment 100% financed) | AM19: Property Fees - Insurance, Maintenance, Council (Cumulative) | AO19: Price cumulative (use this to calculate % based fees) | AP19: Price Cum - Shares | BE19: Property | BF19: Shares
B20: - Council Levies & Rates | C20: =(3.8517%/20)+(240/800000) -> 0.00222585 | N20: 1970-03-01 | O20: 12.8 | P20: =(O20/O$148)*P$148 -> 2.366511628 | Q20: =(P20*R20)/4 -> 0.02461172093 | R20: 0.0416 | S20: =Q20 -> 0.02461172093 | T20: =S20+P20 -> 2.391123349 | V20: 9.8 | W20: =Z20/4000 -> 2.5 | Z20: 10000 | AA20: 100 | AB20: =AC20+$C$27-$C$26 -> 0.0488 | AC20: 0.0588 | AF20: 1970-03-01 | AG20: 1 | AH20: 1 | AI20: =AH20*0.9 -> 0.9 | AJ20: 1 | AK20: 1 | AL20: 1 | AM20: =(SUM(AS$6:AS$8)*AG20)/4 -> 0.0024314625 | AO20: =AG20 -> 1 | AP20: =AJ20 -> 1
B21: Share Costs | N21: 1970-06-01 | O21: =O20 -> 12.8 | P21: =(O21/O$148)*P$148 -> 2.366511628 | Q21: 0.02461172093 | R21: =R20 -> 0.0416 | S21: =Q21+S20 -> 0.04922344186 | T21: =S21+P21 -> 2.41573507 | V21: 9.9 | W21: =Z21/4000 -> 2.575 | Z21: 10300 | AA21: =AA20*(1+AB20)^0.25 -> 101.198289 | AB21: =AC21+$C$27-$C$26 -> 0.0625 | AC21: =AD21 -> 0.0725 | AD21: 0.0725 | AF21: 1970-06-01 | AG21: =P21/P$20 -> 1 | AH21: =(T21/T$20) -> 1.010292953 | AI21: =AH21-((AH$20*AS$3)+(AS$4*AH21)+(AM21)+(20%*S21)) -> 0.9151736218 | AJ21: =Z21/Z$20 -> 1.03 | AK21: =V21/V$20 -> 1.010204082 | AL21: =AA21/100 -> 1.01198289 | AM21: =((SUM(AS$6:AS$8)*AG21)/4)+AM20 -> 0.004862925 | AO21: =AO20 -> 1 | AP21: =AP20 -> 1 | BE21: =(AI21/AI20)-1 -> 0.01685957976 | BF21: =(AJ21/AJ20)-1 -> 0.03
B22: Brokerage on Purchase | C22: 0.0037 | N22: 1970-09-01 | O22: =(O24+O20)/2 -> 13.1 | P22: =(O22/O$148)*P$148 -> 2.421976744 | Q22: 0.02518855814 | R22: =R21 -> 0.0416 | S22: =Q22+S21 -> 0.074412 | T22: 2.496388744 | V22: 9.9 | W22: 2.575 | Z22: =Z21 -> 10300 | AA22: =AA21*(1+AB21)^0.25 -> 102.743748 | AB22: =AC22+$C$27-$C$26 -> 0.0625 | AC22: =AC21 -> 0.0725 | AF22: 1970-09-01 | AG22: 1.0234375 | AH22: 1.044023407 | AI22: =AH22-((AH$20*AS$3)+(AS$4*AH22)+(AM22)+(20%*S22)) -> 0.9400286954 | AJ22: 1.03 | AK22: 1.010204082 | AL22: 1.02743748 | AM22: =((SUM(AS$6:AS$8)*AG22)/4)+AM21 -> 0.007351374902 | AO22: =AO21 -> 1 | AP22: 1 | BE22: =(AI22/AI21)-1 -> 0.02715886148 | BF22: =(AJ22/AJ21)-1 -> 0
B23: Brokerage on Sale | C23: 0.0022 | N23: 1970-12-01 | O23: =O22 -> 13.1 | P23: =(O23/O$148)*P$148 -> 2.421976744 | Q23: 0.02518855814 | R23: 0.0416 | S23: 0.09960055814 | T23: 2.521577302 | V23: 10.1 | W23: 2.325875 | Z23: =(Z21+Z25)/2 -> 9303.5 | AA23: =AA22*(1+AB22)^0.25 -> 104.3128086 | AB23: =AC23+$C$27-$C$26 -> 0.0625 | AC23: =AC22 -> 0.0725 | AF23: 1970-12-01 | AG23: 1.0234375 | AH23: 1.054557601 | AI23: =AH23-((AH$20*AS$3)+(AS$4*AH23)+(AM23)+(20%*S23)) -> 0.9426153605 | AJ23: 0.93035 | AK23: 1.030612245 | AL23: 1.043128086 | AM23: 0.009839824805 | AO23: 1 | AP23: 1 | BE23: 0.002751687353 | BF23: -0.09674757282
B24: Administration & Management Fees (%p.a.) | C24: 0.0037 | N24: 1971-03-01 | O24: 13.4 | P24: =(O24/O$148)*P$148 -> 2.47744186 | Q24: 0.0247744186 | R24: 0.04 | S24: 0.1243749767 | T24: 2.601816837 | V24: 10.2 | W24: 2.325875 | Z24: =Z23 -> 9303.5 | AA24: 105.9058313 | AB24: =AC24+$C$27-$C$26 -> 0.0625 | AC24: 0.0725 | AF24: 1971-03-01 | AG24: 1.046875 | AH24: 1.088114856 | AI24: =AH24-((AH$20*AS$3)+(AS$4*AH24)+(AM24)+(20%*S24)) -> 0.9673300038 | AJ24: 0.93035 | AK24: 1.040816327 | AL24: 1.059058313 | AM24: 0.01238526211 | AO24: =AO23+AG24 -> 2.046875 | AP24: =AP23+AJ24 -> 1.93035 | BE24: 0.02621922407 | BF24: 0
B25: Loan Costs & Administration | N25: 1971-06-01 | O25: =O24 -> 13.4 | P25: =(O25/O$148)*P$148 -> 2.47744186 | Q25: 0.0247744186 | R25: =R24 -> 0.04 | S25: =Q25+S24 -> 0.1491493953 | T25: 2.626591256 | V25: 10.3 | W25: 2.07675 | Z25: 8307 | AA25: =AA24*(1+AB24)^0.25 -> 107.523182 | AB25: =AC25+$C$27-$C$26 -> 0.0625 | AC25: =AD25 -> 0.0725 | AD25: 0.0725 | AF25: 1971-06-01 | AG25: 1.046875 | AH25: 1.098475851 | AI25: =AH25-((AH$20*AS$3)+(AS$4*AH25)+(AM25)+(20%*S25)) -> 0.9697762386 | AJ25: 0.8307 | AK25: 1.051020408 | AL25: 1.07523182 | AM25: =((SUM(AS$6:AS$8)*AG25)/4)+AM24 -> 0.01493069941 | AO25: =AO24 -> 2.046875 | AP25: =AP24 -> 1.93035 | BE25: =(AI25/AI24)-1 -> 0.002528852392 | BF25: =(AJ25/AJ24)-1 -> -0.1071102273
B26: Loan Package Discounts (% p.a.) | C26: 0.01 | N26: 1971-09-01 | O26: =(O28+O24)/2 -> 14.2 | P26: 2.625348837 | Q26: 0.02625348837 | R26: =R25 -> 0.04 | S26: 0.1754028837 | T26: 2.800751721 | V26: 10.5 | W26: 2.07675 | Z26: =Z25 -> 8307 | AA26: 109.1652322 | AB26: 0.0625 | AC26: =AC25 -> 0.0725 | AF26: 1971-09-01 | AG26: 1.109375 | AH26: 1.171312104 | AI26: 1.03175094 | AJ26: 0.8307 | AK26: 1.071428571 | AL26: 1.091652322 | AM26: 0.01762810313 | AO26: =AO25 -> 2.046875 | AP26: =AP25 -> 1.93035 | BE26: 0.06390618681 | BF26: 0
B27: Loan Costs (% p.a.) | C27: 0 | N27: 1971-12-01 | O27: 14.2 | P27: 2.625348837 | Q27: 0.02625348837 | R27: 0.04 | S27: 0.2016563721 | T27: 2.827005209 | V27: 10.7 | W27: 2.25075 | Z27: =(Z25+Z29)/2 -> 9003 | AA27: 110.8323592 | AB27: 0.0625 | AC27: 0.0725 | AF27: 1971-12-01 | AG27: =P27/P$20 -> 1.109375 | AH27: =(T27/T$20) -> 1.182291667 | AI27: 1.034343219 | AJ27: =Z27/Z$20 -> 0.9003 | AK27: =V27/V$20 -> 1.091836735 | AL27: =AA27/100 -> 1.108323592 | AM27: 0.02032550684 | AO27: 2.046875 | AP27: 1.93035 | BE27: 0.002512504289 | BF27: 0.08378475984
N28: 1972-03-01 | O28: 15 | P28: 2.773255814 | Q28: 0.02766322674 | R28: 0.0399 | S28: 0.2293195988 | T28: 3.002575413 | V28: 10.8 | W28: 2.25075 | Z28: =Z27 -> 9003 | AA28: 112.5249458 | AB28: 0.0625 | AC28: 0.0725 | AF28: 1972-03-01 | AG28: 1.171875 | AH28: 1.255717491 | AI28: 1.096449995 | AJ28: 0.9003 | AK28: 1.102040816 | AL28: 1.125249458 | AM28: 0.02317487695 | AO28: =AO27+AG28 -> 3.21875 | AP28: =AP27+AJ28 -> 2.83065 | BE28: 0.06004464957 | BF28: 0
B29: Data Source | N29: 1972-06-01 | O29: =O28 -> 15 | P29: 2.773255814 | Q29: 0.02766322674 | R29: =R28 -> 0.0399 | S29: 0.2569828256 | T29: 3.03023864 | V29: 11 | W29: 2.42475 | Z29: 9699 | AA29: 114.2433809 | AB29: 0.06 | AC29: =AD29 -> 0.07 | AD29: 0.07 | AF29: 1972-06-01 | AG29: 1.171875 | AH29: 1.267286625 | AI29: 1.099174348 | AJ29: 0.9699 | AK29: 1.12244898 | AL29: 1.142433809 | AM29: =((SUM(AS$6:AS$8)*AG29)/4)+AM28 -> 0.02602424707 | AO29: =AO28 -> 3.21875 | AP29: 2.83065 | BE29: 0.002484703645 | BF29: 0.07730756415
B30: Abelson, Chung (2004) "Housing Prices in Australia 1970 to 2003", MQ | N30: 1972-09-01 | O30: =(O32+O28)/2 -> 17.4 | P30: 3.216976744 | Q30: 0.03208934302 | R30: 0.0399 | S30: 0.2890721686 | T30: 3.506048913 | V30: 11.1 | W30: 2.42475 | Z30: =Z29 -> 9699 | AA30: 115.9197707 | AB30: 0.06 | AC30: =AC29 -> 0.07 | AF30: 1972-09-01 | AG30: 1.359375 | AH30: 1.466276892 | AI30: 1.280481866 | AJ30: 0.9699 | AK30: 1.132653061 | AL30: 1.159197707 | AM30: 0.02932951641 | AO30: 3.21875 | AP30: 2.83065 | BE30: 0.1649488259 | BF30: 0
B31: ABS 6416.0 December 2016, Residential Property Price Indexes | N31: 1972-12-01 | O31: 17.4 | P31: 3.216976744 | Q31: 0.03208934302 | R31: 0.0399 | S31: 0.3211615116 | T31: 3.538138256 | V31: 11.2 | W31: 2.313375 | Z31: =(Z29+Z33)/2 -> 9253.5 | AA31: 117.6207596 | AB31: 0.06 | AC31: 0.07 | AF31: 1972-12-01 | AG31: 1.359375 | AH31: 1.479697088 | AI31: 1.283642116 | AJ31: 0.92535 | AK31: 1.142857143 | AL31: 1.176207596 | AM31: 0.03263478574 | AO31: 3.21875 | AP31: 2.83065 | BE31: 0.002468016072 | BF31: -0.04593257037
B32: ABS December 2016, Consumer Price Index, Australia | N32: 1973-03-01 | O32: 19.8 | P32: 3.660697674 | Q32: 0.03422752326 | R32: 0.0374 | S32: 0.3553890349 | T32: 4.016086709 | V32: 11.5 | W32: 2.313375 | Z32: =Z31 -> 9253.5 | AA32: 119.3467085 | AB32: 0.06 | AC32: 0.07 | AF32: 1973-03-01 | AG32: 1.546875 | AH32: 1.67958157 | AI32: 1.464924546 | AJ32: 0.92535 | AK32: 1.173469388 | AL32: 1.193467085 | AM32: 0.0363959543 | AO32: =AO31+AG32 -> 4.765625 | AP32: =AP31+AJ32 -> 3.756 | BE32: 0.1412250563 | BF32: 0
B33: All Ordinaries Total Return, Andex Charts Pty Ltd | N33: 1973-06-01 | O33: =O32 -> 19.8 | P33: 3.660697674 | Q33: 0.03422752326 | R33: 0.0374 | S33: 0.3896165581 | T33: 4.050314233 | V33: 11.9 | W33: 2.202 | Z33: 8808 | AA33: 121.0979838 | AB33: 0.06 | AC33: =AD33 -> 0.07 | AD33: 0.07 | AF33: 1973-06-01 | AG33: 1.546875 | AH33: 1.693895982 | AI33: 1.468059708 | AJ33: 0.8808 | AK33: 1.214285714 | AL33: 1.210979838 | AM33: 0.04015712285 | AO33: =AO32 -> 4.765625 | AP33: 3.756 | BE33: 0.00214015235 | BF33: -0.04814394553
B34: RBA Statistical Tables February 2017, Standard Variable Interest Rates (Home Lending) | N34: 1973-09-01 | O34: =(O36+O32)/2 -> 22.65 | P34: 4.187616279 | Q34: 0.03915421221 | R34: 0.0374 | S34: 0.4287707703 | T34: 4.616387049 | V34: 12.3 | W34: 2.202 | Z34: =Z33 -> 8808 | AA34: 122.874957 | AB34: 0.06 | AC34: =AC33 -> 0.07 | AF34: 1973-09-01 | AG34: 1.76953125 | AH34: 1.93063526 | AI34: 1.683196024 | AJ34: 0.8808 | AK34: 1.255102041 | AL34: 1.22874957 | AM34: 0.04445967173 | AO34: 4.765625 | AP34: 3.756 | BE34: 0.1465446637 | BF34: 0
B35: RBA (2004) "Measuring Housing Prices", Reserve Bank of Australia Bulletin | N35: 1973-12-01 | O35: 22.65 | P35: 4.187616279 | Q35: 0.03915421221 | R35: 0.0374 | S35: 0.4679249826 | T35: 4.655541262 | V35: 12.7 | W35: 1.901375 | Z35: =(Z33+Z37)/2 -> 7605.5 | AA35: 124.6780052 | AB35: 0.06 | AC35: 0.07 | AF35: 1973-12-01 | AG35: 1.76953125 | AH35: 1.94701008 | AI35: 1.686782459 | AJ35: 0.76055 | AK35: 1.295918367 | AL35: 1.246780052 | AM35: 0.04876222061 | AO35: 4.765625 | AP35: 3.756 | BE35: 0.002130729241 | BF35: -0.1365236149
N36: 1974-03-01 | O36: 25.5 | P36: 4.714534884 | Q36: 0.03924850291 | R36: 0.0333 | S36: 0.5071734855 | T36: 5.221708369 | V36: 13 | W36: 1.901375 | Z36: =Z35 -> 7605.5 | AA36: 126.507511 | AB36: 0.06 | AC36: 0.07 | AF36: 1974-03-01 | AG36: 1.9921875 | AH36: 2.183788792 | AI36: 1.901396393 | AJ36: 0.76055 | AK36: 1.326530612 | AL36: 1.26507511 | AM36: 0.0536061498 | AO36: =AO35+AG36 -> 6.7578125 | AP36: =AP35+AJ36 -> 4.51655 | BE36: 0.1272327281 | BF36: 0
N37: 1974-06-01 | O37: =O36 -> 25.5 | P37: 4.714534884 | Q37: 0.03924850291 | R37: 0.0333 | S37: 0.5464219884 | T37: 5.260956872 | V37: 13.6 | W37: 1.60075 | Z37: 6403 | AA37: 128.3638628 | AB37: 0.0738 | AC37: =AD37 -> 0.0838 | AD37: 0.0838 | AF37: 1974-06-01 | AG37: 1.9921875 | AH37: 2.200203045 | AI37: 1.904460446 | AJ37: 0.6403 | AK37: 1.387755102 | AL37: 1.283638628 | AM37: 0.058450079 | AO37: =AO36 -> 6.7578125 | AP37: 4.51655 | BE37: 0.001611475035 | BF37: -0.158109263
N38: 1974-09-01 | O38: =(O40+O36)/2 -> 27.1 | P38: 5.010348837 | Q38: 0.04171115407 | R38: 0.0333 | S38: 0.5881331424 | T38: 5.59848198 | V38: 14.3 | W38: 1.60075 | Z38: =Z37 -> 6403 | AA38: 130.6693189 | AB38: 0.0738 | AC38: =AC37 -> 0.0838 | AF38: 1974-09-01 | AG38: 2.1171875 | AH38: 2.341360592 | AI38: 2.026481599 | AJ38: 0.6403 | AK38: 1.459183673 | AL38: 1.306693189 | AM38: 0.06359794102 | AO38: 6.7578125 | AP38: 4.51655 | BE38: 0.06407124546 | BF38: 0
N39: 1974-12-01 | O39: 27.1 | P39: 5.010348837 | Q39: 0.04171115407 | R39: 0.0333 | S39: 0.6298442965 | T39: 5.640193134 | V39: 14.7 | W39: 1.667625 | Z39: =(Z37+Z41)/2 -> 6670.5 | AA39: 133.0161818 | AB39: 0.0738 | AC39: 0.0838 | AF39: 1974-12-01 | AG39: 2.1171875 | AH39: 2.358804759 | AI39: 2.029737906 | AJ39: 0.66705 | AK39: 1.5 | AL39: 1.330161818 | AM39: 0.06874580303 | AO39: 6.7578125 | AP39: 4.51655 | BE39: 0.001606877219 | BF39: 0.04177729189
N40: 1975-03-01 | O40: 28.7 | P40: 5.306162791 | Q40: 0.04802077326 | R40: 0.0362 | S40: 0.6778650698 | T40: 5.98402786 | V40: 15.4 | W40: 1.667625 | Z40: =Z39 -> 6670.5 | AA40: 135.4051951 | AB40: 0.0738 | AC40: 0.0838 | AF40: 1975-03-01 | AG40: 2.2421875 | AH40: 2.502601074 | AI40: 2.152726419 | AJ40: 0.66705 | AK40: 1.571428571 | AL40: 1.354051951 | AM40: 0.07419759785 | AO40: =AO39+AG40 -> 9 | AP40: =AP39+AJ40 -> 5.1836 | BE40: 0.06059329766 | BF40: 0
N41: 1975-06-01 | O41: =O40 -> 28.7 | P41: 5.306162791 | Q41: 0.04802077326 | R41: 0.0362 | S41: 0.725885843 | T41: 6.032048634 | V41: 15.9 | W41: 1.7345 | Z41: 6938 | AA41: 137.8371159 | AB41: 0.0913 | AC41: =AD41 -> 0.1013 | AD41: 0.1013 | AF41: 1975-06-01 | AG41: 2.2421875 | AH41: 2.522684008 | AI41: 2.156950087 | AJ41: 0.6938 | AK41: 1.62244898 | AL41: 1.378371159 | AM41: 0.07964939268 | AO41: =AO40 -> 9 | AP41: 5.1836 | BE41: 0.001962008489 | BF41: 0.04010194138
N42: 1975-09-01 | O42: =(O44+O40)/2 -> 30.8 | P42: 5.694418605 | Q42: 0.05153448837 | R42: 0.0362 | S42: 0.7774203314 | T42: 6.471838936 | V42: 15.9 | W42: 1.7345 | Z42: =Z41 -> 6938 | AA42: 140.880932 | AB42: 0.0913 | AC42: =AC41 -> 0.1013 | AF42: 1975-09-01 | AG42: 2.40625 | AH42: 2.706610238 | AI42: 2.317361663 | AJ42: 0.6938 | AK42: 1.62244898 | AL42: 1.40880932 | AM42: 0.08550009932 | AO42: 9 | AP42: 5.1836 | BE42: 0.0743696283 | BF42: 0
N43: 1975-12-01 | O43: 30.8 | P43: 5.694418605 | Q43: 0.05153448837 | R43: 0.0362 | S43: 0.8289548198 | T43: 6.523373424 | V43: 16.9 | W43: 2.12425 | Z43: =(Z41+Z45)/2 -> 8497 | AA43: 143.9919638 | AB43: 0.0913 | AC43: 0.1013 | AF43: 1975-12-01 | AG43: 2.40625 | AH43: 2.728162655 | AI43: 2.321894379 | AJ43: 0.8497 | AK43: 1.724489796 | AL43: 1.439919638 | AM43: 0.09135080596 | AO43: 9 | AP43: 5.1836 | BE43: 0.001955981417 | BF43: 0.2247045258
N44: 1976-03-01 | O44: 32.9 | P44: 6.082674419 | Q44: 0.05915400872 | R44: 0.0389 | S44: 0.8881088285 | T44: 6.970783247 | V44: 17.3 | W44: 2.12425 | Z44: =Z43 -> 8497 | AA44: 147.1716957 | AB44: 0.0913 | AC44: 0.1013 | AF44: 1976-03-01 | AG44: 2.5703125 | AH44: 2.915275471 | AI44: 2.483442262 | AJ44: 0.8497 | AK44: 1.765306122 | AL44: 1.471716957 | AM44: 0.09760042441 | AO44: =AO43+AG44 -> 11.5703125 | AP44: =AP43+AJ44 -> 6.0333 | BE44: 0.06957589647 | BF44: 0
N45: 1976-06-01 | O45: =O44 -> 32.9 | P45: 6.082674419 | Q45: 0.05915400872 | R45: 0.0389 | S45: 0.9472628372 | T45: 7.029937256 | V45: 17.8 | W45: 2.514 | Z45: 10056 | AA45: 150.4216445 | AB45: 0.0888 | AC45: =AD45 -> 0.0988 | AD45: 0.0988 | AF45: 1976-06-01 | AG45: 2.5703125 | AH45: 2.940014474 | AI45: 2.489111285 | AJ45: 1.0056 | AK45: 1.816326531 | AL45: 1.504216445 | AM45: 0.1038500429 | AO45: =AO44 -> 11.5703125 | AP45: 6.0333 | BE45: 0.00228272796 | BF45: 0.1834765211
N46: 1976-09-01 | O46: =(O48+O44)/2 -> 34.95 | P46: 6.461686047 | Q46: 0.0628398968 | R46: 0.0389 | S46: 1.010102734 | T46: 7.471788781 | V46: 18.2 | W46: 2.514 | Z46: =Z45 -> 10056 | AA46: 153.6552348 | AB46: 0.0888 | AC46: =AC45 -> 0.0988 | AF46: 1976-09-01 | AG46: 2.73046875 | AH46: 3.124802735 | AI46: 2.647301004 | AJ46: 1.0056 | AK46: 1.857142857 | AL46: 1.536552348 | AM46: 0.1104890752 | AO46: 11.5703125 | AP46: 6.0333 | BE46: 0.06355269026 | BF46: 0
N47: 1976-12-01 | O47: 34.95 | P47: 6.461686047 | Q47: 0.0628398968 | R47: 0.0389 | S47: 1.072942631 | T47: 7.534628677 | V47: 19.3 | W47: 2.42075 | Z47: =(Z45+Z49)/2 -> 9683 | AA47: 156.958337 | AB47: 0.0888 | AC47: 0.0988 | AF47: 1976-12-01 | AG47: 2.73046875 | AH47: 3.151083227 | AI47: 2.653323264 | AJ47: 0.9683 | AK47: 1.969387755 | AL47: 1.56958337 | AM47: 0.1171281076 | AO47: 11.5703125 | AP47: 6.0333 | BE47: 0.002274867906 | BF47: -0.03709228321
N48: 1977-03-01 | O48: 37 | P48: 6.840697674 | Q48: 0.07268241279 | R48: 0.0425 | S48: 1.145625044 | T48: 7.986322718 | V48: 19.8 | W48: 2.42075 | Z48: =Z47 -> 9683 | AA48: 160.3324454 | AB48: 0.0888 | AC48: 0.0988 | AF48: 1977-03-01 | AG48: 2.890625 | AH48: 3.33998776 | AI48: 2.813106687 | AJ48: 0.9683 | AK48: 2.020408163 | AL48: 1.603324454 | AM48: 0.1241565539 | AO48: =AO47+AG48 -> 14.4609375 | AP48: =AP47+AJ48 -> 7.0016 | BE48: 0.06022011169 | BF48: 0
N49: 1977-06-01 | O49: =O48 -> 37 | P49: 6.840697674 | Q49: 0.07268241279 | R49: 0.0425 | S49: 1.218307456 | T49: 8.059005131 | V49: 20.4 | W49: 2.3275 | Z49: 9310 | AA49: 163.7790866 | AB49: 0.0888 | AC49: =AD49 -> 0.0988 | AD49: 0.0988 | AF49: 1977-06-01 | AG49: 2.890625 | AH49: 3.370384524 | AI49: 2.820722652 | AJ49: 0.931 | AK49: 2.081632653 | AL49: 1.637790866 | AM49: 0.1311850002 | AO49: =AO48 -> 14.4609375 | AP49: 7.0016 | BE49: 0.002707314619 | BF49: -0.03852111949
N50: 1977-09-01 | O50: =(O52+O48)/2 -> 37.3 | P50: 6.896162791 | Q50: 0.07327172965 | R50: 0.0425 | S50: 1.291579186 | T50: 8.187741977 | V50: 20.8 | W50: 2.3275 | Z50: =Z49 -> 9310 | AA50: 167.2998196 | AB50: 0.0888 | AC50: =AC49 -> 0.0988 | AF50: 1977-09-01 | AG50: 2.9140625 | AH50: 3.424224008 | AI50: 2.850668776 | AJ50: 0.931 | AK50: 2.12244898 | AL50: 1.672998196 | AM50: 0.1382704339 | AO50: 14.4609375 | AP50: 7.0016 | BE50: 0.0106164725 | BF50: 0
N51: 1977-12-01 | O51: 37.3 | P51: 6.896162791 | Q51: 0.07327172965 | R51: 0.0425 | S51: 1.364850916 | T51: 8.261013706 | V51: 21.2 | W51: 2.405375 | Z51: =(Z49+Z53)/2 -> 9621.5 | AA51: 170.8962373 | AB51: 0.0888 | AC51: 0.0988 | AF51: 1977-12-01 | AG51: 2.9140625 | AH51: 3.454867232 | AI51: 2.858346492 | AJ51: 0.96215 | AK51: 2.163265306 | AL51: 1.708962373 | AM51: 0.1453558676 | AO51: 14.4609375 | AP51: 7.0016 | BE51: 0.002693303406 | BF51: 0.03345864662
N52: 1978-03-01 | O52: 37.6 | P52: 6.951627907 | Q52: 0.08098646512 | R52: 0.0466 | S52: 1.445837381 | T52: 8.397465288 | V52: 21.5 | W52: 2.405375 | Z52: =Z51 -> 9621.5 | AA52: 174.5699666 | AB52: 0.0888 | AC52: 0.0988 | AF52: 1978-03-01 | AG52: 2.9375 | AH52: 3.511933122 | AI52: 2.889790032 | AJ52: 0.96215 | AK52: 2.193877551 | AL52: 1.745699666 | AM52: 0.1524982887 | AO52: =AO51+AG52 -> 17.3984375 | AP52: =AP51+AJ52 -> 7.96375 | BE52: 0.01100060476 | BF52: 0
N53: 1978-06-01 | O53: =O52 -> 37.6 | P53: 6.951627907 | Q53: 0.08098646512 | R53: 0.0466 | S53: 1.526823846 | T53: 8.478451753 | V53: 22 | W53: 2.48325 | Z53: 9933 | AA53: 178.3226695 | AB53: 0.0838 | AC53: =AD53 -> 0.0938 | AD53: 0.0938 | AF53: 1978-06-01 | AG53: 2.9375 | AH53: 3.545802753 | AI53: 2.898965164 | AJ53: 0.9933 | AK53: 2.244897959 | AL53: 1.783226695 | AM53: 0.1596407098 | AO53: =AO52 -> 17.3984375 | AP53: 7.96375 | BE53: 0.003175016657 | BF53: 0.03237540924
N54: 1978-09-01 | O54: =(O56+O52)/2 -> 37.8 | P54: 6.988604651 | Q54: 0.08141724419 | R54: 0.0466 | S54: 1.60824109 | T54: 8.596845741 | V54: 22.4 | W54: 2.48325 | Z54: =Z53 -> 9933 | AA54: 181.9465577 | AB54: 0.0838 | AC54: =AC53 -> 0.0938 | AF54: 1978-09-01 | AG54: 2.953125 | AH54: 3.595316714 | AI54: 2.923034705 | AJ54: 0.9933 | AK54: 2.285714286 | AL54: 1.819465577 | AM54: 0.1668211225 | AO54: 17.3984375 | AP54: 7.96375 | BE54: 0.008302804525 | BF54: 0
N55: 1978-12-01 | O55: 37.8 | P55: 6.988604651 | Q55: 0.08141724419 | R55: 0.0466 | S55: 1.689658334 | T55: 8.678262985 | V55: 22.8 | W55: 2.804875 | Z55: =(Z53+Z57)/2 -> 11219.5 | AA55: 185.644091 | AB55: 0.0838 | AC55: 0.0938 | AF55: 1978-12-01 | AG55: 2.953125 | AH55: 3.629366502 | AI55: 2.93225864 | AJ55: 1.12195 | AK55: 2.326530612 | AL55: 1.85644091 | AM55: 0.1740015352 | AO55: 17.3984375 | AP55: 7.96375 | BE55: 0.003155602417 | BF55: 0.1295177691
N56: 1979-03-01 | O56: 38 | P56: 7.025581395 | Q56: 0.08395569767 | R56: 0.0478 | S56: 1.773614032 | T56: 8.799195427 | V56: 23.2 | W56: 2.804875 | Z56: =Z55 -> 11219.5 | AA56: 189.4167658 | AB56: 0.0838 | AC56: 0.0938 | AF56: 1979-03-01 | AG56: 2.96875 | AH56: 3.679942079 | AI56: 2.95680165 | AJ56: 1.12195 | AK56: 2.367346939 | AL56: 1.894167658 | AM56: 0.1812199395 | AO56: =AO55+AG56 -> 20.3671875 | AP56: =AP55+AJ56 -> 9.0857 | BE56: 0.008370001635 | BF56: 0
N57: 1979-06-01 | O57: =O56 -> 38 | P57: =(O57/O$148)*P$148 -> 7.025581395 | Q57: 0.08395569767 | R57: 0.0478 | S57: 1.85756973 | T57: 8.883151125 | V57: 23.8 | W57: 3.1265 | Z57: 12506 | AA57: 193.2661092 | AB57: =AC57+$C$27-$C$26 -> 0.0813 | AC57: =AD57 -> 0.0913 | AD57: 0.0913 | AF57: 1979-06-01 | AG57: 2.96875 | AH57: 3.715053483 | AI57: =AH57-((AH$20*AS$3)+(AS$4*AH57)+(AM57)+(20%*S57)) -> 2.966499054 | AJ57: 1.2506 | AK57: 2.428571429 | AL57: 1.932661092 | AM57: 0.1884383437 | AO57: =AO56 -> 20.3671875 | AP57: 9.0857 | BE57: 0.003279693757 | BF57: 0.114666429
N58: 1979-09-01 | O58: =(O60+O56)/2 -> 38.75 | P58: 7.164244186 | Q58: 0.08561271802 | R58: 0.0478 | S58: 1.943182448 | T58: 9.107426634 | V58: 24.5 | W58: 3.1265 | Z58: =Z57 -> 12506 | AA58: 197.0798642 | AB58: 0.0813 | AC58: =AC57 -> 0.0913 | AF58: 1979-09-01 | AG58: 3.02734375 | AH58: 3.808848522 | AI58: 3.032058875 | AJ58: 1.2506 | AK58: 2.5 | AL58: 1.970798642 | AM58: 0.1957992166 | AO58: 20.3671875 | AP58: 9.0857 | BE58: 0.02210006483 | BF58: 0
N59: 1979-12-01 | O59: 38.75 | P59: 7.164244186 | Q59: 0.08561271802 | R59: 0.0478 | S59: 2.028795166 | T59: 9.193039352 | V59: 25.1 | W59: 4.28875 | Z59: =(Z57+Z61)/2 -> 17155 | AA59: 200.9688767 | AB59: 0.0813 | AC59: 0.0913 | AF59: 1979-12-01 | AG59: 3.02734375 | AH59: 3.844652914 | AI59: 3.041947675 | AJ59: 1.7155 | AK59: 2.56122449 | AL59: 2.009688767 | AM59: 0.2031600894 | AO59: 20.3671875 | AP59: 9.0857 | BE59: 0.003261414256 | BF59: 0.371741564
N60: 1980-03-01 | O60: 39.5 | P60: 7.302906977 | Q60: 0.08599172965 | R60: 0.0471 | S60: 2.114786895 | T60: 9.417693872 | V60: 25.5 | W60: 4.28875 | Z60: =Z59 -> 17155 | AA60: 204.9346318 | AB60: 0.0813 | AC60: 0.0913 | AF60: 1980-03-01 | AG60: 3.0859375 | AH60: 3.938606462 | AI60: 3.107441393 | AJ60: 1.7155 | AK60: 2.602040816 | AL60: 2.049346318 | AM60: 0.2106634307 | AO60: =AO59+AG60 -> 23.453125 | AP60: =AP59+AJ60 -> 10.8012 | BE60: 0.02153019218 | BF60: 0
N61: 1980-06-01 | O61: =O60 -> 39.5 | P61: 7.302906977 | Q61: 0.08599172965 | R61: 0.0471 | S61: 2.200778625 | T61: 9.503685602 | V61: 26.3 | W61: 5.451 | Z61: 21804 | AA61: 208.9786439 | AB61: 0.0888 | AC61: =AD61 -> 0.0988 | AD61: 0.0988 | AF61: 1980-06-01 | AG61: 3.0859375 | AH61: 3.974569361 | AI61: 3.11726409 | AJ61: 2.1804 | AK61: 2.683673469 | AL61: 2.089786439 | AM61: 0.218166772 | AO61: =AO60 -> 23.453125 | AP61: 10.8012 | BE61: 0.00316102395 | BF61: 0.2709997085
N62: 1980-09-01 | O62: =(O64+O60)/2 -> 41.75 | P62: 7.718895349 | Q62: 0.09088999273 | R62: 0.0471 | S62: 2.291668618 | T62: 10.01056397 | V62: 26.8 | W62: 5.451 | Z62: =Z61 -> 21804 | AA62: 213.4710246 | AB62: 0.0888 | AC62: =AC61 -> 0.0988 | AF62: 1980-09-01 | AG62: 3.26171875 | AH62: 4.186552723 | AI62: 3.294659372 | AJ62: 2.1804 | AK62: 2.734693878 | AL62: 2.134710246 | AM62: 0.2260975188 | AO62: 23.453125 | AP62: 10.8012 | BE62: 0.05690736376 | BF62: 0
N63: 1980-12-01 | O63: 41.75 | P63: 7.718895349 | Q63: 0.09088999273 | R63: 0.0471 | S63: 2.38255861 | T63: 10.10145396 | V63: 27.4 | W63: 5.881125 | Z63: =(Z61+Z65)/2 -> 23524.5 | AA63: 218.0599773 | AB63: 0.0888 | AC63: 0.0988 | AF63: 1980-12-01 | AG63: 3.26171875 | AH63: 4.224564142 | AI63: 3.305041589 | AJ63: 2.35245 | AK63: 2.795918367 | AL63: 2.180599773 | AM63: 0.2340282656 | AO63: 23.453125 | AP63: 10.8012 | BE63: 0.003151226331 | BF63: 0.0789075399
N64: 1981-03-01 | O64: 44 | P64: 8.134883721 | Q64: 0.09294104651 | R64: 0.0457 | S64: 2.475499657 | T64: 10.61038338 | V64: 28 | W64: 5.881125 | Z64: =Z63 -> 23524.5 | AA64: 222.7475781 | AB64: 0.0888 | AC64: 0.0988 | AF64: 1981-03-01 | AG64: 3.4375 | AH64: 4.437405282 | AI64: 3.482422721 | AJ64: 2.35245 | AK64: 2.857142857 | AL64: 2.227475781 | AM64: 0.242386418 | AO64: =AO63+AG64 -> 26.890625 | AP64: =AP63+AJ64 -> 13.15365 | BE64: 0.05366986395 | BF64: 0
N65: 1981-06-01 | O65: =O64 -> 44 | P65: 8.134883721 | Q65: 0.09294104651 | R65: 0.0457 | S65: 2.568440703 | T65: 10.70332442 | V65: 28.6 | W65: 6.31125 | Z65: 25245 | AA65: 227.5359474 | AB65: 0.105 | AC65: =AD65 -> 0.115 | AD65: 0.115 | AF65: 1981-06-01 | AG65: 3.4375 | AH65: 4.47627448 | AI65: 3.49279079 | AJ65: 2.5245 | AK65: 2.918367347 | AL65: 2.275359474 | AM65: 0.2507445703 | AO65: =AO64 -> 26.890625 | AP65: 13.15365 | BE65: 0.002977257247 | BF65: 0.07313651725
N66: 1981-09-01 | O66: =(O68+O64)/2 -> 45.375 | P66: 8.389098837 | Q66: 0.09584545422 | R66: 0.0457 | S66: 2.664286158 | T66: 11.05338499 | V66: 29.3 | W66: 6.31125 | Z66: =Z65 -> 25245 | AA66: 233.2870268 | AB66: 0.105 | AC66: =AC65 -> 0.115 | AF66: 1981-09-01 | AG66: 3.544921875 | AH66: 4.622674527 | AI66: 3.605546399 | AJ66: 2.5245 | AK66: 2.989795918 | AL66: 2.332870268 | AM66: 0.2593639149 | AO66: 26.890625 | AP66: 13.15365 | BE66: 0.03228238289 | BF66: 0
N67: 1981-12-01 | O67: 45.375 | P67: 8.389098837 | Q67: 0.09584545422 | R67: 0.0457 | S67: 2.760131612 | T67: 11.14923045 | V67: 30.6 | W67: 5.395375 | Z67: =(Z65+Z69)/2 -> 21581.5 | AA67: 239.1834675 | AB67: 0.105 | AC67: 0.115 | AF67: 1981-12-01 | AG67: 3.544921875 | AH67: 4.662758387 | AI67: 3.61623847 | AJ67: 2.15815 | AK67: 3.12244898 | AL67: 2.391834675 | AM67: 0.2679832595 | AO67: 26.890625 | AP67: 13.15365 | BE67: 0.00296545079 | BF67: -0.1451178451
N68: 1982-03-01 | O68: 46.75 | P68: 8.643313953 | Q68: 0.1048001817 | R68: 0.0485 | S68: 2.864931794 | T68: 11.50824575 | V68: 31 | W68: 5.395375 | Z68: =Z67 -> 21581.5 | AA68: 245.2289436 | AB68: 0.105 | AC68: 0.115 | AF68: 1982-03-01 | AG68: 3.65234375 | AH68: 4.812903422 | AI68: 3.73053713 | AJ68: 2.15815 | AK68: 3.163265306 | AL68: 2.452289436 | AM68: 0.2768637964 | AO68: =AO67+AG68 -> 30.54296875 | AP68: =AP67+AJ68 -> 15.3118 | BE68: 0.03160705827 | BF68: 0
N69: 1982-06-01 | O69: =O68 -> 46.75 | P69: 8.643313953 | Q69: 0.1048001817 | R69: 0.0485 | S69: 2.969731975 | T69: 11.61304593 | V69: 31.7 | W69: 4.4795 | Z69: 17918 | AA69: 251.4272219 | AB69: 0.125 | AC69: =AD69 -> 0.135 | AD69: 0.135 | AF69: 1982-06-01 | AG69: 3.65234375 | AH69: 4.85673227 | AI69: 3.74277225 | AJ69: 1.7918 | AK69: 3.234693878 | AL69: 2.514272219 | AM69: 0.2857443333 | AO69: =AO68 -> 30.54296875 | AP69: 15.3118 | BE69: 0.003279720964 | BF69: -0.1697518708
N70: 1982-09-01 | O70: =(O72+O68)/2 -> 49.625 | P70: 9.174854651 | Q70: 0.1112451126 | R70: 0.0485 | S70: 3.080977088 | T70: 12.25583174 | V70: 32.8 | W70: 4.4795 | Z70: =Z69 -> 17918 | AA70: 258.9407654 | AB70: 0.125 | AC70: =AC69 -> 0.135 | AF70: 1982-09-01 | AG70: 3.876953125 | AH70: 5.125553956 | AI70: 3.96916538 | AJ70: 1.7918 | AK70: 3.346938776 | AL70: 2.589407654 | AM70: 0.2951709994 | AO70: 30.54296875 | AP70: 15.3118 | BE70: 0.06048808606 | BF70: 0
N71: 1982-12-01 | O71: 49.625 | P71: 9.174854651 | Q71: 0.1112451126 | R71: 0.0485 | S71: 3.192222201 | T71: 12.36707685 | V71: 33.7 | W71: 5.2575 | Z71: =(Z69+Z73)/2 -> 21030 | AA71: 266.6788404 | AB71: 0.125 | AC71: 0.135 | AF71: 1982-12-01 | AG71: 3.876953125 | AH71: 5.172078161 | AI71: 3.982152929 | AJ71: 2.103 | AK71: 3.43877551 | AL71: 2.666788404 | AM71: 0.3045976655 | AO71: 30.54296875 | AP71: 15.3118 | BE71: 0.003272110583 | BF71: 0.1736800982
N72: 1983-03-01 | O72: 52.5 | P72: 9.706395349 | Q72: 0.1259404797 | R72: 0.0519 | S72: 3.31816268 | T72: 13.02455803 | V72: 34.4 | W72: 5.2575 | Z72: =Z71 -> 21030 | AA72: 274.6481567 | AB72: 0.125 | AC72: 0.135 | AF72: 1983-03-01 | AG72: 4.1015625 | AH72: 5.447045647 | AI72: 4.210960824 | AJ72: 2.103 | AK72: 3.510204082 | AL72: 2.746481567 | AM72: 0.3145704609 | AO72: =AO71+AG72 -> 34.64453125 | AP72: =AP71+AJ72 -> 17.4148 | BE72: 0.05745833972 | BF72: 0
N73: 1983-06-01 | O73: =O72 -> 52.5 | P73: 9.706395349 | Q73: 0.1259404797 | R73: 0.0519 | S73: 3.44410316 | T73: 13.15049851 | V73: 35.4 | W73: 6.0355 | Z73: 24142 | AA73: 282.8556246 | AB73: 0.115 | AC73: =AD73 -> 0.125 | AD73: 0.125 | AF73: 1983-06-01 | AG73: 4.1015625 | AH73: 5.499715653 | AI73: 4.226363138 | AJ73: 2.4142 | AK73: 3.612244898 | AL73: 2.828556246 | AM73: 0.3245432563 | AO73: =AO72 -> 34.64453125 | AP73: 17.4148 | BE73: 0.003657672077 | BF73: 0.1479790775
N74: 1983-09-01 | O74: =(O76+O72)/2 -> 58.75 | P74: 10.8619186 | Q74: 0.1409333939 | R74: 0.0519 | S74: 3.585036554 | T74: 14.44695516 | V74: 35.9 | W74: 6.0355 | Z74: =Z73 -> 24142 | AA74: 290.65884 | AB74: 0.115 | AC74: =AC73 -> 0.125 | AF74: 1983-09-01 | AG74: 4.58984375 | AH74: 6.041911291 | AI74: 4.707524239 | AJ74: 2.4142 | AK74: 3.663265306 | AL74: 2.9065884 | AM74: 0.3357032893 | AO74: 34.64453125 | AP74: 17.4148 | BE74: 0.1138475529 | BF74: 0
N75: 1983-12-01 | O75: 58.75 | P75: 10.8619186 | Q75: 0.1409333939 | R75: 0.0519 | S75: 3.725969948 | T75: 14.58788855 | V75: 37 | W75: 6.442 | Z75: =(Z73+Z77)/2 -> 25768 | AA75: 298.6773249 | AB75: 0.115 | AC75: 0.125 | AF75: 1983-12-01 | AG75: 4.58984375 | AH75: 6.100851535 | AI75: 4.724760161 | AJ75: 2.5768 | AK75: 3.775510204 | AL75: 2.986773249 | AM75: 0.3468633223 | AO75: 34.64453125 | AP75: 17.4148 | BE75: 0.003661356106 | BF75: 0.0673515036
N76: 1984-03-01 | O76: 65 | P76: 12.01744186 | Q76: 0.1532223837 | R76: 0.051 | S76: 3.879192331 | T76: 15.89663419 | V76: 36.8 | W76: 6.442 | Z76: =Z75 -> 25768 | AA76: 306.9170178 | AB76: 0.115 | AC76: 0.125 | AF76: 1984-03-01 | AG76: 5.078125 | AH76: 6.648186594 | AI76: 5.207210071 | AJ76: 2.5768 | AK76: 3.755102041 | AL76: 3.069170178 | AM76: 0.3592105928 | AO76: =AO75+AG76 -> 39.72265625 | AP76: =AP75+AJ76 -> 19.9916 | BE76: 0.1021109841 | BF76: 0
N77: 1984-06-01 | O77: =O76 -> 65 | P77: 12.01744186 | Q77: 0.1532223837 | R77: 0.051 | S77: 4.032414715 | T77: 16.04985658 | V77: 36.9 | W77: 6.8485 | Z77: 27394 | AA77: 315.3840215 | AB77: 0.105 | AC77: =AD77 -> 0.115 | AD77: 0.115 | AF77: 1984-06-01 | AG77: 5.078125 | AH77: 6.712266259 | AI77: 5.225734802 | AJ77: 2.7394 | AK77: 3.765306122 | AL77: 3.153840215 | AM77: 0.3715578633 | AO77: =AO76 -> 39.72265625 | AP77: 19.9916 | BE77: 0.00355751566 | BF77: 0.06310152127
N78: 1984-09-01 | O78: =(O80+O76)/2 -> 70.1 | P78: 12.96034884 | Q78: 0.1652444477 | R78: 0.051 | S78: 4.197659163 | T78: 17.158008 | V78: 37.5 | W78: 6.8485 | Z78: =Z77 -> 27394 | AA78: 323.3555028 | AB78: 0.105 | AC78: =AC77 -> 0.115 | AF78: 1984-09-01 | AG78: 5.4765625 | AH78: 7.175710115 | AI78: 5.624275958 | AJ78: 2.7394 | AK78: 3.826530612 | AL78: 3.233555028 | AM78: 0.3848739196 | AO78: 39.72265625 | AP78: 19.9916 | BE78: 0.07626509395 | BF78: 0
N79: 1984-12-01 | O79: 70.1 | P79: 12.96034884 | Q79: 0.1652444477 | R79: 0.051 | S79: 4.36290361 | T79: 17.32325245 | V79: 37.9 | W79: 8.097125 | Z79: =(Z77+Z81)/2 -> 32388.5 | AA79: 331.5284671 | AB79: 0.105 | AC79: 0.115 | AF79: 1984-12-01 | AG79: 5.4765625 | AH79: 7.244817569 | AI79: 5.644254168 | AJ79: 3.23885 | AK79: 3.867346939 | AL79: 3.315284671 | AM79: 0.398189976 | AO79: 39.72265625 | AP79: 19.9916 | BE79: 0.003552139056 | BF79: 0.1823209462
N80: 1985-03-01 | O80: 75.2 | P80: 13.90325581 | Q80: 0.1727479535 | R80: 0.0497 | S80: 4.535651564 | T80: 18.43890738 | V80: 38.4 | W80: 8.097125 | Z80: =Z79 -> 32388.5 | AA80: 339.908007 | AB80: 0.105 | AC80: 0.115 | AF80: 1985-03-01 | AG80: 5.875 | AH80: 7.711399492 | AI80: 6.043338382 | AJ80: 3.23885 | AK80: 3.918367347 | AL80: 3.39908007 | AM80: 0.4124748182 | AO80: =AO79+AG80 -> 45.59765625 | AP80: =AP79+AJ80 -> 23.23045 | BE80: 0.07070627957 | BF80: 0
N81: 1985-06-01 | O81: =O80 -> 75.2 | P81: 13.90325581 | Q81: 0.1727479535 | R81: 0.0497 | S81: 4.708399517 | T81: 18.61165533 | V81: 39.5 | W81: 9.34575 | Z81: 37383 | AA81: 348.4993437 | AB81: 0.11 | AC81: =AD81 -> 0.12 | AD81: 0.12 | AF81: 1985-06-01 | AG81: 5.875 | AH81: 7.783645014 | AI81: 6.063859649 | AJ81: 3.7383 | AK81: 4.030612245 | AL81: 3.484993437 | AM81: 0.4267596604 | AO81: =AO80 -> 45.59765625 | AP81: 23.23045 | BE81: 0.003395684063 | BF81: 0.1542059682
N82: 1985-09-01 | O82: =(O84+O80)/2 -> 78.6 | P82: 14.53186047 | Q82: 0.1805583663 | R82: 0.0497 | S82: 4.888957884 | T82: 19.42081835 | V82: 40.3 | W82: 9.34575 | Z82: =Z81 -> 37383 | AA82: 357.7113409 | AB82: 0.11 | AC82: =AC81 -> 0.12 | AF82: 1985-09-01 | AG82: 6.140625 | AH82: 8.122047889 | AI82: 6.337684037 | AJ82: 3.7383 | AK82: 4.112244898 | AL82: 3.577113409 | AM82: 0.4416903598 | AO82: 45.59765625 | AP82: 23.23045 | BE82: 0.04515678196 | BF82: 0
N83: 1985-12-01 | O83: 78.6 | P83: 14.53186047 | Q83: 0.1805583663 | R83: 0.0497 | S83: 5.06951625 | T83: 19.60137672 | V83: 41 | W83: 11.332125 | Z83: =(Z81+Z85)/2 -> 45328.5 | AA83: 367.1668419 | AB83: 0.11 | AC83: 0.12 | AF83: 1985-12-01 | AG83: 6.140625 | AH83: 8.197559831 | AI83: 6.359133128 | AJ83: 4.53285 | AK83: 4.183673469 | AL83: 3.671668419 | AM83: 0.4566210592 | AO83: 45.59765625 | AP83: 23.23045 | BE83: 0.003384373689 | BF83: 0.2125431346
N84: 1986-03-01 | O84: 82 | P84: =(O84/O$148)*P$148 -> 15.16046512 | Q84: =(P84*R84)/4 -> 0.2008761628 | R84: 0.053 | S84: 5.270392413 | T84: 20.43085753 | V84: 42.1 | W84: 11.332125 | Z84: =Z83 -> 45328.5 | AA84: 376.8722831 | AB84: 0.11 | AC84: 0.12 | AF84: 1986-03-01 | AG84: 6.40625 | AH84: 8.544459883 | AI84: 6.636405389 | AJ84: 4.53285 | AK84: 4.295918367 | AL84: 3.768722831 | AM84: 0.4721976158 | AO84: =AO83+AG84 -> 52.00390625 | AP84: =AP83+AJ84 -> 27.7633 | BE84: 0.04360221041 | BF84: 0
N85: 1986-06-01 | O85: =O84 -> 82 | P85: 15.16046512 | Q85: 0.2008761628 | R85: 0.053 | S85: 5.471268576 | T85: =S85+P85 -> 20.63173369 | V85: 42.8 | W85: =Z85/4000 -> 13.3185 | Z85: 53274 | AA85: 386.8342715 | AB85: =AC85+$C$27-$C$26 -> 0.145 | AC85: =AD85 -> 0.155 | AD85: 0.155 | AF85: 1986-06-01 | AG85: 6.40625 | AH85: 8.628469001 | AI85: 6.661302353 | AJ85: 5.3274 | AK85: 4.367346939 | AL85: 3.868342715 | AM85: 0.4877741725 | AO85: =AO84 -> 52.00390625 | AP85: 27.7633 | BE85: 0.003751573677 | BF85: 0.175287071
N86: 1986-09-01 | O86: =(O88+O84)/2 -> 85.75 | P86: 15.85377907 | Q86: 0.2100625727 | R86: 0.053 | S86: =Q86+S85 -> 5.681331148 | T86: 21.53511022 | V86: 43.9 | W86: 13.3185 | Z86: =Z85 -> 53274 | AA86: 400.1532192 | AB86: 0.145 | AC86: =AC85 -> 0.155 | AF86: 1986-09-01 | AG86: 6.69921875 | AH86: 9.006273235 | AI86: 6.965693004 | AJ86: 5.3274 | AK86: 4.479591837 | AL86: 4.001532192 | AM86: =((SUM(AS$6:AS$8)*AG86)/4)+AM85 -> 0.5040630716 | AO86: 52.00390625 | AP86: 27.7633 | BE86: =(AI86/AI85)-1 -> 0.04569536634 | BF86: =(AJ86/AJ85)-1 -> 0
N87: 1986-12-01 | O87: 85.75 | P87: 15.85377907 | Q87: 0.2100625727 | R87: 0.053 | S87: 5.891393721 | T87: 21.74517279 | V87: 45.2 | W87: 16.915375 | Z87: =(Z85+Z89)/2 -> 67661.5 | AA87: =AA86*(1+AB86)^0.25 -> 413.9307465 | AB87: 0.145 | AC87: 0.155 | AF87: 1986-12-01 | AG87: 6.69921875 | AH87: 9.094124233 | AI87: 6.991728549 | AJ87: 6.76615 | AK87: 4.612244898 | AL87: 4.139307465 | AM87: 0.5203519708 | AO87: 52.00390625 | AP87: 27.7633 | BE87: 0.003737681867 | BF87: 0.2700660735
N88: 1987-03-01 | O88: 89.5 | P88: 16.54709302 | Q88: 0.2002198256 | R88: 0.0484 | S88: 6.091613547 | T88: 22.63870657 | V88: 46 | W88: 16.915375 | Z88: =Z87 -> 67661.5 | AA88: 428.1826428 | AB88: 0.145 | AC88: 0.155 | AF88: 1987-03-01 | AG88: 6.9921875 | AH88: 9.467812098 | AI88: 7.293423692 | AJ88: 6.76615 | AK88: 4.693877551 | AL88: 4.281826428 | AM88: 0.5373532125 | AO88: =AO87+AG88 -> 58.99609375 | AP88: =AP87+AJ88 -> 34.52945 | BE88: 0.04315029416 | BF88: 0
N89: 1987-06-01 | O89: =O88 -> 89.5 | P89: 16.54709302 | Q89: 0.2002198256 | R89: 0.0484 | S89: 6.291833372 | T89: 22.8389264 | V89: 46.8 | W89: 20.51225 | Z89: 82049 | AA89: 442.9252409 | AB89: 0.145 | AC89: =AD89 -> 0.155 | AD89: 0.155 | AF89: 1987-06-01 | AG89: 6.9921875 | AH89: 9.551546727 | AI89: =AH89-((AH$20*AS$3)+(AS$4*AH89)+(AM89)+(20%*S89)) -> 7.316763729 | AJ89: 8.2049 | AK89: 4.775510204 | AL89: 4.429252409 | AM89: 0.5543544542 | AO89: =AO88 -> 58.99609375 | AP89: =AP88 -> 34.52945 | BE89: 0.003200148193 | BF89: 0.2126393887
N90: 1987-09-01 | O90: =(O92+O88)/2 -> 99.25 | P90: 18.3497093 | Q90: 0.2220314826 | R90: 0.0484 | S90: 6.513864855 | T90: 24.86357416 | V90: 47.6 | W90: 20.51225 | Z90: =Z89 -> 82049 | AA90: 458.1754359 | AB90: 0.145 | AC90: =AC89 -> 0.155 | AF90: 1987-09-01 | AG90: 7.75390625 | AH90: 10.3982817 | AI90: 8.066369673 | AJ90: 8.2049 | AK90: 4.857142857 | AL90: 4.581754359 | AM90: 0.5732077865 | AO90: 58.99609375 | AP90: 34.52945 | BE90: 0.1024504784 | BF90: 0
N91: 1987-12-01 | O91: 99.25 | P91: 18.3497093 | Q91: 0.2220314826 | R91: 0.0484 | S91: 6.735896337 | T91: 25.08560564 | V91: 48.4 | W91: 19.62975 | Z91: =(Z89+Z93)/2 -> 78519 | AA91: 473.9507048 | AB91: 0.145 | AC91: 0.155 | AF91: 1987-12-01 | AG91: =P91/P$20 -> 7.75390625 | AH91: =(T91/T$20) -> 10.49113826 | AI91: 8.092252339 | AJ91: =Z91/Z$20 -> 7.8519 | AK91: =V91/V$20 -> 4.93877551 | AL91: =AA91/100 -> 4.739507048 | AM91: 0.5920611188 | AO91: 58.99609375 | AP91: 34.52945 | BE91: 0.003208713138 | BF91: -0.04302307158
N92: 1988-03-01 | O92: 109 | P92: 20.15232558 | Q92: 0.2468659884 | R92: 0.049 | S92: 6.982762326 | T92: 27.13508791 | V92: 49.1 | W92: 19.62975 | Z92: =Z91 -> 78519 | AA92: 490.269126 | AB92: 0.145 | AC92: 0.155 | AF92: 1988-03-01 | AG92: 8.515625 | AH92: 11.34825935 | AI92: 8.845009972 | AJ92: 7.8519 | AK92: 5.010204082 | AL92: 4.90269126 | AM92: 0.6127665416 | AO92: =AO91+AG92 -> 67.51171875 | AP92: =AP91+AJ92 -> 42.38135 | BE92: 0.09302201672 | BF92: 0
N93: 1988-06-01 | O93: =O92 -> 109 | P93: 20.15232558 | Q93: 0.2468659884 | R93: =R92 -> 0.049 | S93: 7.229628314 | T93: 27.3819539 | V93: 50.1 | W93: 18.74725 | Z93: 74989 | AA93: 507.1494008 | AB93: 0.125 | AC93: =AD93 -> 0.135 | AD93: 0.135 | AF93: 1988-06-01 | AG93: 8.515625 | AH93: 11.45150204 | AI93: 8.874044326 | AJ93: 7.4989 | AK93: 5.112244898 | AL93: 5.071494008 | AM93: 0.6334719645 | AO93: =AO92 -> 67.51171875 | AP93: 42.38135 | BE93: 0.003282568886 | BF93: -0.04495727149
N94: 1988-09-01 | O94: =(O96+O92)/2 -> 120.5 | P94: 22.27848837 | Q94: 0.2729114826 | R94: 0.049 | S94: 7.502539797 | T94: 29.78102817 | V94: 50.8 | W94: 18.74725 | Z94: =Z93 -> 74989 | AA94: 522.3048365 | AB94: 0.125 | AC94: =AC93 -> 0.135 | AF94: 1988-09-01 | AG94: 9.4140625 | AH94: 12.45482722 | AI94: 9.759764266 | AJ94: 7.4989 | AK94: 5.183673469 | AL94: 5.223048365 | AM94: 0.6563619044 | AO94: 67.51171875 | AP94: 42.38135 | BE94: 0.09981017756 | BF94: 0
N95: 1988-12-01 | O95: 120.5 | P95: 22.27848837 | Q95: 0.2729114826 | R95: 0.049 | S95: 7.775451279 | T95: 30.05393965 | V95: 51.7 | W95: 19.077125 | Z95: =(Z93+Z97)/2 -> 76308.5 | AA95: 537.9131706 | AB95: 0.125 | AC95: 0.135 | AF95: 1988-12-01 | AG95: 9.4140625 | AH95: 12.56896248 | AI95: 9.791861878 | AJ95: 7.63085 | AK95: 5.275510204 | AL95: 5.379131706 | AM95: 0.6792518443 | AO95: 67.51171875 | AP95: 42.38135 | BE95: 0.0032887692 | BF95: 0.01759591407
N96: 1989-03-01 | O96: 132 | P96: 24.40465116 | Q96: 0.2525881395 | R96: 0.0414 | S96: 8.028039419 | T96: 32.43269058 | V96: 52.4 | W96: 19.077125 | Z96: =Z95 -> 76308.5 | AA96: 553.9879376 | AB96: 0.125 | AC96: 0.135 | AF96: 1989-03-01 | AG96: 10.3125 | AH96: 13.56378817 | AI96: 10.67130245 | AJ96: 7.63085 | AK96: 5.346938776 | AL96: 5.539879376 | AM96: 0.7043263014 | AO96: =AO95+AG96 -> 77.82421875 | AP96: =AP95+AJ96 -> 50.0122 | BE96: 0.08981341713 | BF96: 0
N97: 1989-06-01 | O97: =O96 -> 132 | P97: 24.40465116 | Q97: 0.2525881395 | R97: 0.0414 | S97: 8.280627558 | T97: 32.68527872 | V97: 53.8 | W97: 19.407 | Z97: 77628 | AA97: 570.543076 | AB97: 0.16 | AC97: =AD97 -> 0.17 | AD97: 0.17 | AF97: 1989-06-01 | AG97: 10.3125 | AH97: 13.66942393 | AI97: 10.6971207 | AJ97: 7.7628 | AK97: 5.489795918 | AL97: 5.70543076 | AM97: 0.7294007584 | AO97: =AO96 -> 77.82421875 | AP97: 50.0122 | BE97: 0.002419409225 | BF97: 0.01729165165
N98: 1989-09-01 | O98: =(O100+O96)/2 -> 131.5 | P98: 24.3122093 | Q98: 0.2516313663 | R98: 0.0414 | S98: 8.532258924 | T98: 32.84446823 | V98: 55 | W98: 19.407 | Z98: =Z97 -> 77628 | AA98: 592.1107371 | AB98: 0.16 | AC98: =AC97 -> 0.17 | AF98: 1989-09-01 | AG98: 10.2734375 | AH98: 13.73599912 | AI98: 10.68572714 | AJ98: 7.7628 | AK98: 5.612244898 | AL98: 5.921107371 | AM98: 0.7543802364 | AO98: 77.82421875 | AP98: 50.0122 | BE98: -0.001065105589 | BF98: 0
N99: 1989-12-01 | O99: 131.5 | P99: 24.3122093 | Q99: 0.2516313663 | R99: 0.0414 | S99: 8.783890291 | T99: 33.09609959 | V99: 56 | W99: 19.80375 | Z99: =(Z97+Z101)/2 -> 79215 | AA99: 614.4936987 | AB99: 0.16 | AC99: 0.17 | AF99: 1989-12-01 | AG99: 10.2734375 | AH99: 13.84123475 | AI99: 10.71144759 | AJ99: 7.9215 | AK99: 5.714285714 | AL99: 6.144936987 | AM99: 0.7793597145 | AO99: 77.82421875 | AP99: 50.0122 | BE99: 0.002406991202 | BF99: 0.02044365435
N100: 1990-03-01 | O100: 131 | P100: 24.21976744 | Q100: 0.2621789826 | R100: 0.0433 | S100: 9.046069273 | T100: 33.26583672 | V100: 56.9 | W100: 19.80375 | Z100: =Z99 -> 79215 | AA100: 637.7227807 | AB100: 0.16 | AC100: 0.17 | AF100: 1990-03-01 | AG100: 10.234375 | AH100: 13.9122211 | AI100: 10.70227419 | AJ100: 7.9215 | AK100: 5.806122449 | AL100: 6.377227807 | AM100: 0.8042442135 | AO100: =AO99+AG100 -> 88.05859375 | AP100: =AP99+AJ100 -> 57.9337 | BE100: -0.0008564106942 | BF100: 0
N101: 1990-06-01 | O101: =O100 -> 131 | P101: 24.21976744 | Q101: 0.2621789826 | R101: 0.0433 | S101: 9.308248256 | T101: 33.5280157 | V101: 58 | W101: 20.2005 | Z101: 80802 | AA101: 661.8299681 | AB101: 0.155 | AC101: =AD101 -> 0.165 | AD101: 0.165 | AF101: 1990-06-01 | AG101: 10.234375 | AH101: 14.02186789 | AI101: 10.73021481 | AJ101: 8.0802 | AK101: 5.918367347 | AL101: 6.618299681 | AM101: 0.8291287125 | AO101: =AO100 -> 88.05859375 | AP101: 57.9337 | BE101: 0.002610717637 | BF101: 0.02003408445
N102: 1990-09-01 | O102: =(O104+O100)/2 -> 129 | P102: 23.85 | Q102: 0.25817625 | R102: 0.0433 | S102: 9.566424506 | T102: 33.41642451 | V102: 58.5 | W102: 20.2005 | Z102: =Z101 -> 80802 | AA102: 686.1071173 | AB102: 0.155 | AC102: =AC101 -> 0.165 | AF102: 1990-09-01 | AG102: 10.078125 | AH102: 13.97519895 | AI102: 10.60927279 | AJ102: 8.0802 | AK102: 5.969387755 | AL102: 6.861071173 | AM102: 0.8536332955 | AO102: 88.05859375 | AP102: 57.9337 | BE102: -0.01127116442 | BF102: 0
N103: 1990-12-01 | O103: 129 | P103: 23.85 | Q103: 0.25817625 | R103: 0.0433 | S103: 9.824600756 | T103: 33.67460076 | V103: 60.2 | W103: 20.792 | Z103: =(Z101+Z105)/2 -> 83168 | AA103: 711.2747973 | AB103: 0.155 | AC103: 0.165 | AF103: 1990-12-01 | AG103: 10.078125 | AH103: 14.08317173 | AI103: 10.63678683 | AJ103: 8.3168 | AK103: 6.142857143 | AL103: 7.112747973 | AM103: 0.8781378785 | AO103: 88.05859375 | AP103: 57.9337 | BE103: 0.00259339563 | BF103: 0.02928145343
N104: 1991-03-01 | O104: 127 | P104: 23.48023256 | Q104: 0.2629786047 | R104: 0.0448 | S104: 10.08757936 | T104: 33.56781192 | V104: 59.9 | W104: 20.792 | Z104: =Z103 -> 83168 | AA104: 737.3656744 | AB104: 0.155 | AC104: 0.165 | AF104: 1991-03-01 | AG104: 9.921875 | AH104: 14.0385112 | AI104: 10.51719234 | AJ104: 8.3168 | AK104: 6.112244898 | AL104: 7.373656744 | AM104: 0.9022625455 | AO104: =AO103+AG104 -> 97.98046875 | AP104: =AP103+AJ104 -> 66.2505 | BE104: -0.01124347973 | BF104: 0
N105: 1991-06-01 | O105: 128 | P105: 23.66511628 | Q105: 0.2650493023 | R105: 0.0448 | S105: 10.35262866 | T105: 34.01774494 | V105: 60.3 | W105: 21.3835 | Z105: 85534 | AA105: 764.4136132 | AB105: 0.12 | AC105: =AD105 -> 0.13 | AD105: 0.13 | AF105: 1991-06-01 | AG105: 10 | AH105: 14.22667925 | AI105: 10.62050918 | AJ105: 8.5534 | AK105: 6.153061224 | AL105: 7.644136132 | AM105: 0.9265771705 | AO105: =AO104 -> 97.98046875 | AP105: 66.2505 | BE105: 0.009823614649 | BF105: 0.02844844171
N106: 1991-09-01 | O106: =(O108+O104)/2 -> 126 | P106: 23.29534884 | Q106: 0.260907907 | R106: 0.0448 | S106: 10.61353657 | T106: 33.90888541 | V106: 60.8 | W106: 21.3835 | Z106: =Z105 -> 85534 | AA106: 786.3808307 | AB106: 0.12 | AC106: =AC105 -> 0.13 | AF106: 1991-09-01 | AG106: 9.84375 | AH106: 14.18115273 | AI106: 10.50068743 | AJ106: 8.5534 | AK106: 6.204081633 | AL106: 7.863808307 | AM106: 0.9505118795 | AO106: 97.98046875 | AP106: 66.2505 | BE106: -0.01128211007 | BF106: 0
N107: 1991-12-01 | O107: 126 | P107: 23.29534884 | Q107: 0.260907907 | R107: 0.0448 | S107: 10.87444448 | T107: 34.16979331 | V107: 61.2 | W107: 22.81175 | Z107: =(Z105+Z109)/2 -> 91247 | AA107: 808.9793277 | AB107: 0.12 | AC107: 0.13 | AF107: 1991-12-01 | AG107: 9.84375 | AH107: 14.29026793 | AI107: 10.52932173 | AJ107: 9.1247 | AK107: 6.244897959 | AL107: 8.089793277 | AM107: 0.9744465885 | AO107: 97.98046875 | AP107: 66.2505 | BE107: 0.00272689799 | BF107: 0.06679215283
N108: 1992-03-01 | O108: 125 | P108: 23.11046512 | Q108: 0.2547928779 | R108: 0.0441 | S108: 11.12923735 | T108: 34.23970247 | V108: 61.2 | W108: 22.81175 | Z108: =Z107 -> 91247 | AA108: 832.2272455 | AB108: 0.12 | AC108: 0.13 | AF108: 1992-03-01 | AG108: 9.765625 | AH108: 14.31950488 | AI108: 10.48268588 | AJ108: 9.1247 | AK108: 6.244897959 | AL108: 8.322272455 | AM108: 0.9981913395 | AO108: =AO107+AG108 -> 107.7460938 | AP108: =AP107+AJ108 -> 75.3752 | BE108: -0.004429141256 | BF108: 0
N109: 1992-06-01 | O109: =O108 -> 125 | P109: 23.11046512 | Q109: 0.2547928779 | R109: 0.0441 | S109: 11.38403023 | T109: 34.49449535 | V109: 61.1 | W109: 24.24 | Z109: 96960 | AA109: 856.1432467 | AB109: 0.095 | AC109: =AD109 -> 0.105 | AD109: 0.105 | AF109: 1992-06-01 | AG109: 9.765625 | AH109: 14.4260627 | AI109: 10.51027805 | AJ109: 9.696 | AK109: 6.234693878 | AL109: 8.561432467 | AM109: 1.02193609 | AO109: =AO108 -> 107.7460938 | AP109: 75.3752 | BE109: 0.00263216656 | BF109: 0.0626102776
N110: 1992-09-01 | O110: =(O112+O108)/2 -> 125.5 | P110: 23.20290698 | Q110: 0.2558120494 | R110: 0.0441 | S110: 11.63984228 | T110: 34.84274926 | V110: 61 | W110: 24.24 | Z110: =Z109 -> 96960 | AA110: 875.7899659 | AB110: 0.095 | AC110: =AC109 -> 0.105 | AF110: 1992-09-01 | AG110: 9.8046875 | AH110: 14.57170718 | AI110: 10.57509461 | AJ110: 9.696 | AK110: 6.224489796 | AL110: 8.757899659 | AM110: 1.04577582 | AO110: 107.7460938 | AP110: 75.3752 | BE110: 0.006166968928 | BF110: 0
N111: 1992-12-01 | O111: 125.5 | P111: 23.20290698 | Q111: 0.2558120494 | R111: 0.0441 | S111: 11.89565433 | T111: 35.09856131 | V111: 61.1 | W111: 25.44125 | Z111: =(Z109+Z113)/2 -> 101765 | AA111: 895.8875368 | AB111: 0.095 | AC111: 0.105 | AF111: 1992-12-01 | AG111: 9.8046875 | AH111: 14.67869122 | AI111: 10.60279716 | AJ111: 10.1765 | AK111: 6.234693878 | AL111: 8.958875368 | AM111: 1.06961555 | AO111: 107.7460938 | AP111: 75.3752 | BE111: 0.002619602466 | BF111: 0.04955651815
N112: 1993-03-01 | O112: 126 | P112: 23.29534884 | Q112: 0.2498426163 | R112: 0.0429 | S112: 12.14549695 | T112: 35.44084578 | V112: 61.9 | W112: 25.44125 | Z112: =Z111 -> 101765 | AA112: 916.4463053 | AB112: 0.095 | AC112: 0.105 | AF112: 1993-03-01 | AG112: 9.84375 | AH112: 14.8218392 | AI112: 10.66631598 | AJ112: 10.1765 | AK112: 6.316326531 | AL112: 9.164463053 | AM112: 1.093550259 | AO112: =AO111+AG112 -> 117.5898438 | AP112: =AP111+AJ112 -> 85.5517 | BE112: 0.005990761438 | BF112: 0
N113: 1993-06-01 | O113: =O112 -> 126 | P113: 23.29534884 | Q113: 0.2498426163 | R113: 0.0429 | S113: 12.39533956 | T113: 35.6906884 | V113: 62.2 | W113: 26.6425 | Z113: 106570 | AA113: 937.4768552 | AB113: 0.085 | AC113: =AD113 -> 0.095 | AD113: 0.095 | AF113: 1993-06-01 | AG113: 9.84375 | AH113: 14.92632675 | AI113: 10.6927208 | AJ113: 10.657 | AK113: 6.346938776 | AL113: 9.374768552 | AM113: 1.117484968 | AO113: =AO112 -> 117.5898438 | AP113: 85.5517 | BE113: 0.002475532707 | BF113: 0.04721662654
N114: 1993-09-01 | O114: =(O116+O112)/2 -> 128 | P114: 23.66511628 | Q114: 0.2538083721 | R114: 0.0429 | S114: 12.64914794 | T114: 36.31426422 | V114: 62.4 | W114: 26.6425 | Z114: =Z113 -> 106570 | AA114: 956.7929994 | AB114: 0.085 | AC114: =AC113 -> 0.095 | AF114: 1993-09-01 | AG114: 10 | AH114: 15.18711456 | AI114: 10.86800079 | AJ114: 10.657 | AK114: 6.367346939 | AL114: 9.567929994 | AM114: 1.141799593 | AO114: 117.5898438 | AP114: 85.5517 | BE114: 0.01639245973 | BF114: 0
N115: 1993-12-01 | O115: 128 | P115: 23.66511628 | Q115: 0.2538083721 | R115: 0.0429 | S115: 12.90295631 | T115: 36.56807259 | V115: 62.6 | W115: 29.10075 | Z115: =(Z113+Z117)/2 -> 116403 | AA115: 976.5071411 | AB115: 0.085 | AC115: 0.095 | AF115: 1993-12-01 | AG115: 10 | AH115: 15.29326064 | AI115: 10.89482473 | AJ115: 11.6403 | AK115: 6.387755102 | AL115: 9.765071411 | AM115: 1.166114218 | AO115: 117.5898438 | AP115: 85.5517 | BE115: 0.002468157541 | BF115: 0.09226799287
N116: 1994-03-01 | O116: 130 | P116: 24.03488372 | Q116: 0.2499627907 | R116: 0.0416 | S116: 13.1529191 | T116: 37.18780282 | V116: 62.8 | W116: 29.10075 | Z116: =Z115 -> 116403 | AA116: 996.6274808 | AB116: 0.085 | AC116: 0.095 | AF116: 1994-03-01 | AG116: 10.15625 | AH116: 15.55244017 | AI116: 11.06894998 | AJ116: 11.6403 | AK116: 6.408163265 | AL116: 9.966274808 | AM116: 1.190808759 | AO116: =AO115+AG116 -> 127.7460938 | AP116: =AP115+AJ116 -> 97.192 | BE116: 0.01598238216 | BF116: 0
N117: 1994-06-01 | O117: =O116 -> 130 | P117: 24.03488372 | Q117: 0.2499627907 | R117: 0.0416 | S117: 13.40288189 | T117: 37.43776561 | V117: 63.3 | W117: 31.559 | Z117: 126236 | AA117: 1017.162388 | AB117: 0.0775 | AC117: =AD117 -> 0.0875 | AD117: 0.0875 | AF117: 1994-06-01 | AG117: 10.15625 | AH117: 15.65697798 | AI117: 11.09461918 | AJ117: 12.6236 | AK117: 6.459183673 | AL117: 10.17162388 | AM117: 1.2155033 | AO117: =AO116 -> 127.7460938 | AP117: 97.192 | BE117: 0.002319027136 | BF117: 0.08447376786
N118: 1994-09-01 | O118: =(O120+O116)/2 -> 129.5 | P118: 23.94244186 | Q118: 0.2490013953 | R118: 0.0416 | S118: 13.65188328 | T118: 37.59432515 | V118: 63.4 | W118: 31.559 | Z118: =Z117 -> 126236 | AA118: 1036.321748 | AB118: 0.0775 | AC118: =AC117 -> 0.0875 | AF118: 1994-09-01 | AG118: 10.1171875 | AH118: 15.72245328 | AI118: 11.08307563 | AJ118: 12.6236 | AK118: 6.469387755 | AL118: 10.36321748 | AM118: 1.240102862 | AO118: 127.7460938 | AP118: 97.192 | BE118: -0.001040463522 | BF118: 0
N119: 1994-12-01 | O119: 129.5 | P119: 23.94244186 | Q119: 0.2490013953 | R119: 0.0416 | S119: 13.90088468 | T119: 37.84332654 | V119: 63.9 | W119: 32.459625 | Z119: =(Z117+Z121)/2 -> 129838.5 | AA119: 1055.841996 | AB119: 0.0775 | AC119: 0.0875 | AF119: 1994-12-01 | AG119: 10.1171875 | AH119: 15.82658902 | AI119: 11.1086461 | AJ119: 12.98385 | AK119: 6.520408163 | AL119: 10.55841996 | AM119: 1.264702424 | AO119: 127.7460938 | AP119: 97.192 | BE119: 0.002307163513 | BF119: 0.02853781806
N120: 1995-03-01 | O120: 129 | P120: 23.85 | Q120: 0.2468475 | R120: 0.0414 | S120: 14.14773218 | T120: 37.99773218 | V120: 65 | W120: 32.459625 | Z120: =Z119 -> 129838.5 | AA120: 1075.729929 | AB120: 0.0775 | AC120: 0.0875 | AF120: 1995-03-01 | AG120: 10.078125 | AH120: 15.89116354 | AI120: 11.09676355 | AJ120: 12.98385 | AK120: 6.632653061 | AL120: 10.75729929 | AM120: 1.289207007 | AO120: =AO119+AG120 -> 137.8242188 | AP120: =AP119+AJ120 -> 110.17585 | BE120: -0.001069666357 | BF120: 0
N121: 1995-06-01 | O121: =O120 -> 129 | P121: 23.85 | Q121: 0.2468475 | R121: 0.0414 | S121: 14.39457968 | T121: 38.24457968 | V121: 65.6 | W121: 33.36025 | Z121: 133441 | AA121: 1095.992473 | AB121: 0.095 | AC121: =AD121 -> 0.105 | AD121: 0.105 | AF121: 1995-06-01 | AG121: 10.078125 | AH121: 15.99439849 | AI121: =AH121-((AH$20*AS$3)+(AS$4*AH121)+(AM121)+(20%*S121)) -> 11.12199502 | AJ121: 13.3441 | AK121: 6.693877551 | AL121: 10.95992473 | AM121: 1.31371159 | AO121: =AO120 -> 137.8242188 | AP121: 110.17585 | BE121: 0.002273768304 | BF121: 0.02774600754
N122: 1995-09-01 | O122: =(O124+O120)/2 -> 130 | P122: 24.03488372 | Q122: 0.2487610465 | R122: 0.0414 | S122: 14.64334073 | T122: 38.67822445 | V122: 66.4 | W122: 33.36025 | Z122: =Z121 -> 133441 | AA122: 1121.143236 | AB122: 0.095 | AC122: =AC121 -> 0.105 | AF122: 1995-09-01 | AG122: 10.15625 | AH122: 16.17575457 | AI122: 11.22165011 | AJ122: 13.3441 | AK122: 6.775510204 | AL122: 11.21143236 | AM122: 1.338406131 | AO122: 137.8242188 | AP122: 110.17585 | BE122: 0.008960181184 | BF122: 0
N123: 1995-12-01 | O123: =O122+0.3 -> 130.3 | P123: =(O123/O$148)*P$148 -> 24.09034884 | Q123: 0.2493351105 | R123: 0.0414 | S123: 14.89267584 | T123: 38.98302467 | V123: 66.9 | W123: 36.000875 | Z123: =(Z121+Z125)/2 -> 144003.5 | AA123: 1146.871158 | AB123: 0.095 | AC123: 0.105 | AF123: 1995-12-01 | AG123: 10.1796875 | AH123: 16.30322614 | AI123: 11.26940426 | AJ123: 14.40035 | AK123: 6.826530612 | AL123: 11.46871158 | AM123: 1.36315766 | AO123: 137.8242188 | AP123: 110.17585 | BE123: 0.004255537103 | BF123: 0.07915483247
N124: 1996-03-01 | O124: 131 | P124: 24.21976744 | Q124: 0.2543075581 | R124: 0.042 | S124: 15.1469834 | T124: 39.36675084 | V124: 66.8 | W124: 36.000875 | Z124: =Z123 -> 144003.5 | AA124: 1173.189482 | AB124: 0.095 | AC124: 0.105 | AF124: 1996-03-01 | AG124: 10.234375 | AH124: 16.46370559 | AI124: 11.34771853 | AJ124: 14.40035 | AK124: 6.816326531 | AL124: 11.73189482 | AM124: 1.388042159 | AO124: =AO123+AG124 -> 148.0585938 | AP124: =AP123+AJ124 -> 124.5762 | BE124: 0.006949281495 | BF124: 0
N125: 1996-06-01 | O125: =O124 -> 131 | P125: 24.21976744 | Q125: 0.2543075581 | R125: 0.042 | S125: 15.40129095 | T125: 39.6210584 | V125: 67.3 | W125: 38.6415 | Z125: 154566 | AA125: 1200.111758 | AB125: 0.0875 | AC125: =AD125 -> 0.0975 | AD125: 0.0975 | AF125: 1996-06-01 | AG125: 10.234375 | AH125: 16.57006043 | AI125: 11.37407317 | AJ125: 15.4566 | AK125: 6.867346939 | AL125: 12.00111758 | AM125: 1.412926658 | AO125: =AO124 -> 148.0585938 | AP125: 124.5762 | BE125: 0.002322461779 | BF125: 0.07334891166
N126: 1996-09-01 | O126: =(O128+O124)/2 -> 136.5 | P126: 25.23662791 | Q126: 0.264984593 | R126: 0.042 | S126: 15.66627555 | T126: 40.90290345 | V126: 67.6 | W126: 38.6415 | Z126: =Z125 -> 154566 | AA126: 1225.544279 | AB126: 0.0875 | AC126: =AC125 -> 0.0975 | AF126: 1996-09-01 | AG126: 10.6640625 | AH126: 17.10614531 | AI126: 11.80978846 | AJ126: 15.4566 | AK126: 6.897959184 | AL126: 12.25544279 | AM126: 1.438855926 | AO126: 148.0585938 | AP126: 124.5762 | BE126: 0.03830776236 | BF126: 0
N127: 1996-12-01 | O127: =O126+0.3 -> 136.8 | P127: =(O127/O$148)*P$148 -> 25.29209302 | Q127: 0.2655669767 | R127: 0.042 | S127: 15.93184252 | T127: 41.22393555 | V127: 67.7 | W127: 43.77375 | Z127: =(Z125+Z129)/2 -> 175095 | AA127: 1251.515762 | AB127: 0.0875 | AC127: 0.0975 | AF127: 1996-12-01 | AG127: 10.6875 | AH127: 17.24040525 | AI127: 11.85957836 | AJ127: 17.5095 | AK127: 6.908163265 | AL127: 12.51515762 | AM127: 1.464842181 | AO127: 148.0585938 | AP127: 124.5762 | BE127: 0.004215985582 | BF127: 0.132817049
N128: 1997-03-01 | O128: 142 | P128: 26.25348837 | Q128: 0.2776306395 | R128: 0.0423 | S128: 16.20947316 | T128: 42.46296153 | V128: 67.8 | W128: 43.77375 | Z128: =Z127 -> 175095 | AA128: 1278.037626 | AB128: 0.0875 | AC128: 0.0975 | AF128: 1997-03-01 | AG128: 11.09375 | AH128: 17.75858262 | AI128: 12.27452846 | AJ128: 17.5095 | AK128: 6.918367347 | AL128: 12.78037626 | AM128: 1.491816219 | AO128: =AO127+AG128 -> 159.1523438 | AP128: =AP127+AJ128 -> 142.0857 | BE128: 0.03498860496 | BF128: 0
N129: 1997-06-01 | O129: 145 | P129: 26.80813953 | Q129: 0.2834960756 | R129: 0.0423 | S129: 16.49296924 | T129: 43.30110877 | V129: 67.7 | W129: 48.906 | Z129: 195624 | AA129: 1305.121537 | AB129: 0.062 | AC129: =AD129 -> 0.072 | AD129: 0.072 | AF129: 1997-06-01 | AG129: 11.328125 | AH129: 18.10910708 | AI129: 12.52678882 | AJ129: 19.5624 | AK129: 6.908163265 | AL129: 13.05121537 | AM129: 1.51936013 | AO129: =AO128 -> 159.1523438 | AP129: 142.0857 | BE129: 0.02055153184 | BF129: 0.1172449242
N130: 1997-09-01 | O130: =(O132+O128)/2 -> 148.5 | P130: 27.45523256 | Q130: 0.2903390843 | R130: 0.0423 | S130: 16.78330832 | T130: 44.23854088 | V130: 67.5 | W130: 48.906 | Z130: =Z129 -> 195624 | AA130: 1324.896905 | AB130: 0.062 | AC130: =AC129 -> 0.072 | AF130: 1997-09-01 | AG130: 11.6015625 | AH130: 18.50115382 | AI130: 12.81687711 | AJ130: 19.5624 | AK130: 6.887755102 | AL130: 13.24896905 | AM130: 1.547568894 | AO130: 159.1523438 | AP130: 142.0857 | BE130: 0.02315743412 | BF130: 0
N131: 1997-12-01 | O131: 148.5 | P131: 27.45523256 | Q131: 0.2903390843 | R131: 0.0423 | S131: 17.07364741 | T131: 44.52887997 | V131: 67.7 | W131: 49.306875 | Z131: =(Z129+Z133)/2 -> 197227.5 | AA131: 1344.971912 | AB131: 0.062 | AC131: 0.072 | AF131: 1997-12-01 | AG131: 11.6015625 | AH131: 18.62257754 | AI131: 12.8471673 | AJ131: 19.72275 | AK131: 6.908163265 | AL131: 13.44971912 | AM131: 1.575777658 | AO131: 159.1523438 | AP131: 142.0857 | BE131: 0.002363304792 | BF131: 0.008196847013
N132: 1998-03-01 | O132: 155 | P132: 28.65697674 | Q132: 0.290868314 | R132: 0.0406 | S132: 17.36451572 | T132: 46.02149247 | V132: 67.6 | W132: 49.306875 | Z132: =Z131 -> 197227.5 | AA132: 1365.351098 | AB132: 0.062 | AC132: 0.072 | AF132: 1998-03-01 | AG132: 12.109375 | AH132: 19.24680819 | AI132: 13.35881157 | AJ132: 19.72275 | AK132: 6.897959184 | AL132: 13.65351098 | AM132: 1.605221149 | AO132: =AO131+AG132 -> 171.2617188 | AP132: =AP131+AJ132 -> 161.80845 | BE132: 0.03982545454 | BF132: 0
N133: 1998-06-01 | O133: 160 | P133: 29.58139535 | Q133: 0.3002511628 | R133: 0.0406 | S133: 17.66476688 | T133: 47.24616223 | V133: 68 | W133: 49.70775 | Z133: 198831 | AA133: 1386.039072 | AB133: 0.057 | AC133: =AD133 -> 0.067 | AD133: 0.067 | AF133: 1998-06-01 | AG133: 12.5 | AH133: 19.75898159 | AI133: 13.76005452 | AJ133: 19.8831 | AK133: 6.93877551 | AL133: 13.86039072 | AM133: 1.63561443 | AO133: =AO132 -> 171.2617188 | AP133: 161.80845 | BE133: 0.03003582652 | BF133: 0.008130204966
N134: 1998-09-01 | O134: =(O136+O132)/2 -> 165 | P134: 30.50581395 | Q134: 0.3096340116 | R134: 0.0406 | S134: 17.9744009 | T134: 48.48021485 | V134: 68 | W134: 49.70775 | Z134: =Z133 -> 198831 | AA134: 1405.38146 | AB134: 0.057 | AC134: =AC133 -> 0.067 | AF134: 1998-09-01 | AG134: 12.890625 | AH134: 20.27507902 | AI134: 14.16223818 | AJ134: 19.8831 | AK134: 6.93877551 | AL134: 14.0538146 | AM134: 1.666957502 | AO134: 171.2617188 | AP134: 161.80845 | BE134: 0.02922834783 | BF134: 0
N135: 1998-12-01 | O135: 165 | P135: 30.50581395 | Q135: 0.3096340116 | R135: 0.0406 | S135: 18.28403491 | T135: 48.78984886 | V135: 68.3 | W135: 53.520375 | Z135: =(Z133+Z137)/2 -> 214081.5 | AA135: 1424.993774 | AB135: 0.057 | AC135: 0.067 | AF135: 1998-12-01 | AG135: 12.890625 | AH135: 20.40457214 | AI135: 14.1932817 | AJ135: 21.40815 | AK135: 6.969387755 | AL135: 14.24993774 | AM135: 1.698300573 | AO135: 171.2617188 | AP135: 161.80845 | BE135: 0.002191992306 | BF135: 0.07670081627
N136: 1999-03-01 | O136: 175 | P136: 32.35465116 | Q136: 0.3203110465 | R136: 0.0396 | S136: 18.60434595 | T136: 50.95899712 | V136: 68.3 | W136: 53.520375 | Z136: =Z135 -> 214081.5 | AA136: 1444.87978 | AB136: 0.057 | AC136: 0.067 | AF136: 1999-03-01 | AG136: 13.671875 | AH136: 21.31173916 | AI136: 14.96685718 | AJ136: 21.40815 | AK136: 6.969387755 | AL136: 14.4487978 | AM136: 1.731543224 | AO136: =AO135+AG136 -> 184.9335938 | AP136: =AP135+AJ136 -> 183.2166 | BE136: 0.05450293317 | BF136: 0
N137: 1999-06-01 | O137: 180 | P137: 33.27906977 | Q137: 0.3294627907 | R137: 0.0396 | S137: 18.93380874 | T137: 52.21287851 | V137: 68.6 | W137: 57.333 | Z137: 229332 | AA137: 1465.043299 | AB137: 0.055 | AC137: =AD137 -> 0.065 | AD137: 0.065 | AF137: 1999-06-01 | AG137: 14.0625 | AH137: 21.83612926 | AI137: 15.37018667 | AJ137: 22.9332 | AK137: 7 | AL137: 14.65043299 | AM137: 1.765735666 | AO137: =AO136 -> 184.9335938 | AP137: 183.2166 | BE137: 0.02694817522 | BF137: 0.07123688875
N138: 1999-09-01 | O138: =(O140+O136)/2 -> 183 | P138: 33.83372093 | Q138: 0.3349538372 | R138: 0.0396 | S138: 19.26876258 | T138: 53.10248351 | V138: 69.3 | W138: 57.333 | Z138: =Z137 -> 229332 | AA138: 1484.785013 | AB138: 0.055 | AC138: =AC137 -> 0.065 | AF138: 1999-09-01 | AG138: 14.296875 | AH138: 22.20817405 | AI138: 15.62559659 | AJ138: 22.9332 | AK138: 7.071428571 | AL138: 14.84785013 | AM138: 1.800497981 | AO138: 184.9335938 | AP138: 183.2166 | BE138: 0.01661722966 | BF138: 0
N139: 1999-12-01 | O139: 183 | P139: 33.83372093 | Q139: 0.3349538372 | R139: 0.0396 | S139: 19.60371642 | T139: 53.43743735 | V139: 69.7 | W139: 61.261125 | Z139: =(Z137+Z141)/2 -> 245044.5 | AA139: 1504.79275 | AB139: 0.055 | AC139: 0.065 | AF139: 1999-12-01 | AG139: 14.296875 | AH139: 22.34825626 | AI139: 15.65832243 | AJ139: 24.50445 | AK139: 7.112244898 | AL139: 15.0479275 | AM139: 1.835260297 | AO139: 184.9335938 | AP139: 183.2166 | BE139: 0.00209437356 | BF139: 0.06851420648
N140: 2000-03-01 | O140: 191 | P140: 35.3127907 | Q140: 0.3275261337 | R140: 0.0371 | S140: 19.93124255 | T140: 55.24403325 | V140: 70.5 | W140: 61.261125 | Z140: =Z139 -> 245044.5 | AA140: 1525.070095 | AB140: 0.055 | AC140: 0.065 | AF140: 2000-03-01 | AG140: 14.921875 | AH140: 23.10379901 | AI140: 16.28185626 | AJ140: 24.50445 | AK140: 7.193877551 | AL140: 15.25070095 | AM140: 1.871542276 | AO140: =AO139+AG140 -> 199.8554688 | AP140: =AP139+AJ140 -> 207.72105 | BE140: 0.03982124093 | BF140: 0
N141: 2000-06-01 | O141: 200 | P141: 36.97674419 | Q141: 0.3429593023 | R141: 0.0371 | S141: 20.27420185 | T141: 57.25094604 | V141: 70.9 | W141: 65.18925 | Z141: 260757 | AA141: 1545.62068 | AB141: 0.068 | AC141: =AD141 -> 0.078 | AD141: 0.078 | AF141: 2000-06-01 | AG141: 15.625 | AH141: 23.94311697 | AI141: 16.98101805 | AJ141: 26.0757 | AK141: 7.234693878 | AL141: 15.4562068 | AM141: 1.909533878 | AO141: =AO140 -> 199.8554688 | AP141: 207.72105 | BE141: 0.04294115955 | BF141: 0.06412100659
N142: 2000-09-01 | O142: =(O144+O140)/2 -> 208 | P142: 38.45581395 | Q142: 0.3566776744 | R142: 0.0371 | S142: 20.63087953 | T142: 59.08669348 | V142: 73.6 | W142: 65.18925 | Z142: =Z141 -> 260757 | AA142: 1571.251601 | AB142: 0.068 | AC142: =AC141 -> 0.078 | AF142: 2000-09-01 | AG142: 16.25 | AH142: 24.71085129 | AI142: 17.60719619 | AJ142: 26.0757 | AK142: 7.510204082 | AL142: 15.71251601 | AM142: 1.949045143 | AO142: 199.8554688 | AP142: 207.72105 | BE142: 0.03687518254 | BF142: 0
N143: 2000-12-01 | O143: 208 | P143: 38.45581395 | Q143: 0.3566776744 | R143: 0.0371 | S143: 20.9875572 | T143: 59.44337116 | V143: 73.9 | W143: 68.0735 | Z143: =(Z141+Z145)/2 -> 272294 | AA143: 1597.307557 | AB143: 0.068 | AC143: 0.078 | AF143: 2000-12-01 | AG143: 16.25 | AH143: 24.8600187 | AI143: 17.6395501 | AJ143: 27.2294 | AK143: 7.540816327 | AL143: 15.97307557 | AM143: 1.988556409 | AO143: 199.8554688 | AP143: 207.72105 | BE143: 0.001837539137 | BF143: 0.04424425806
N144: 2001-03-01 | O144: 225 | P144: 41.59883721 | Q144: 0.372309593 | R144: 0.0358 | S144: 21.3598668 | T144: 62.95870401 | V144: 74.7 | W144: 68.0735 | Z144: =Z143 -> 272294 | AA144: 1623.795597 | AB144: 0.068 | AC144: 0.078 | AF144: 2001-03-01 | AG144: 17.578125 | AH144: 26.33017826 | AI144: 18.93370081 | AJ144: 27.2294 | AK144: 7.62244898 | AL144: 16.23795597 | AM144: 2.031296961 | AO144: =AO143+AG144 -> 217.4335938 | AP144: =AP143+AJ144 -> 234.95045 | BE144: 0.07336642371 | BF144: 0
N145: 2001-06-01 | O145: 230 | P145: 42.52325581 | Q145: 0.3805831395 | R145: 0.0358 | S145: 21.74044994 | T145: 64.26370575 | V145: 75.1 | W145: 70.95775 | Z145: 283831 | AA145: 1650.722887 | AB145: 0.058 | AC145: =AD145 -> 0.068 | AD145: 0.068 | AF145: 2001-06-01 | AG145: 17.96875 | AH145: 26.87594757 | AI145: 19.33783237 | AJ145: 28.3831 | AK145: 7.663265306 | AL145: 16.50722887 | AM145: 2.074987303 | AO145: =AO144 -> 217.4335938 | AP145: =AP144 -> 234.95045 | BE145: 0.02134456299 | BF145: 0.04236964458
N146: 2001-09-01 | O146: =(O148+O144)/2 -> 241.5 | P146: 44.6494186 | Q146: 0.3996122965 | R146: 0.0358 | S146: 22.14006223 | T146: 66.78948084 | V146: 75.5 | W146: 70.95775 | Z146: =Z145 -> 283831 | AA146: 1674.154712 | AB146: 0.058 | AC146: =AC145 -> 0.068 | AF146: 2001-09-01 | AG146: 18.8671875 | AH146: 27.93226074 | AI146: 20.2260957 | AJ146: 28.3831 | AK146: 7.704081633 | AL146: 16.74154712 | AM146: 2.120862161 | AO146: 217.4335938 | AP146: 234.95045 | BE146: 0.04593396555 | BF146: 0
N147: 2001-12-01 | O147: 241.5 | P147: =(O147/O$148)*P$148 -> 44.6494186 | Q147: 0.3996122965 | R147: 0.0358 | S147: 22.53967453 | T147: 67.18909313 | V147: 76.1 | W147: 70.775 | Y147: XNT | Z147: 283100 | AA147: 1697.91915 | AB147: 0.058 | AC147: 0.068 | AF147: 2001-12-01 | AG147: 18.8671875 | AH147: 28.09938398 | AI147: 20.2607367 | AJ147: 28.31 | AK147: 7.765306122 | AL147: 16.9791915 | AM147: 2.16673702 | AO147: 217.4335938 | AP147: 234.95045 | BE147: 0.001712688342 | BF147: -0.002575476252
N148: 2002-03-01 | O148: 258 | P148: 47.7 | Q148: =(P148*R148)/4 -> 0.37206 | R148: 0.0312 | S148: 22.91173453 | T148: 70.61173453 | U148: 1.01039153 | V148: 76.9 | W148: =Z148/4000 -> 71.5 | X148: 10000 | Y148: 16943.21 | Z148: 286000 | AA148: 1722.020921 | AB148: 0.058 | AC148: 0.068 | AF148: 2002-03-01 | AG148: 20.15625 | AH148: 29.53077873 | AI148: 21.51145449 | AJ148: 28.6 | AK148: 7.846938776 | AL148: 17.22020921 | AM148: 2.215746186 | AO148: 237.5898438 | AP148: =AP147+AJ148 -> 263.55045 | BE148: =(AI148/AI147)-1 -> 0.06173111114 | BF148: =(AJ148/AJ147)-1 -> 0.01024373013
N149: 2002-06-01 | P149: 50.7 | Q149: 0.39546 | R149: 0.0312 | S149: 23.30719453 | T149: =S149+P149 -> 74.00719453 | U149: 1.083714628 | V149: 77.3 | W149: =Z149/4000 -> 67.83617154 | X149: 9550 | Y149: 16075 | Z149: =Z$148*(Y149/Y$148) -> 271344.6862 | AA149: 1746.464814 | AB149: =AC149+$C$27-$C$26 -> 0.0555 | AC149: =AD149 -> 0.0655 | AD149: 0.0655 | AF149: 2002-06-01 | AG149: 21.42393868 | AH149: 30.95080585 | AI149: 22.74349702 | AJ149: 27.13446862 | AK149: 7.887755102 | AL149: 17.46464814 | AM149: 2.26783769 | AO149: 237.5898438 | AP149: =AP148 -> 263.55045 | BE149: 0.05727379017 | BF149: -0.05124235608
N150: 2002-09-01 | P150: 51.9 | Q150: 0.40482 | R150: 0.0312 | S150: =Q150+S149 -> 23.71201453 | T150: 75.61201453 | U150: 1.119340365 | V150: 77.9 | W150: =Z150/4000 -> 63.35075526 | X150: 8942 | Y150: 15012.1 | Z150: =Z$148*(Y150/Y$148) -> 253403.021 | AA150: 1770.20841 | AB150: 0.0555 | AC150: =AC149 -> 0.0655 | AF150: 2002-09-01 | AG150: 21.93101415 | AH150: 31.62196319 | AI150: 23.25351963 | AJ150: 25.3403021 | AK150: 7.948979592 | AL150: 17.7020841 | AM150: =((SUM(AS$6:AS$8)*AG150)/4)+AM149 -> 2.321162128 | AO150: 237.5898438 | AP150: 263.55045 | BE150: 0.02242498649 | BF150: -0.06612130638
N151: 2002-12-01 | P151: 53.1 | Q151: 0.41418 | R151: 0.0312 | S151: 24.12619453 | T151: 77.22619453 | U151: 1.154966102 | V151: 78.5 | W151: =Z151/4000 -> 64.70199272 | X151: 9122 | Y151: 15332.3 | Z151: 258807.9709 | AA151: =AA150*(1+AB150)^0.25 -> 1794.274806 | AB151: 0.0555 | AC151: 0.0655 | AF151: 2002-12-01 | AG151: 22.43808962 | AH151: 32.29703502 | AI151: 23.76419521 | AJ151: 25.88079709 | AK151: 8.010204082 | AL151: 17.94274806 | AM151: 2.375719502 | AO151: 237.5898438 | AP151: 263.55045 | BE151: 0.02196121643 | BF151: 0.0213294609
N152: 2003-03-01 | P152: 54.2 | Q152: =(P152*R152)/4 -> 0.356365 | R152: 0.0263 | S152: 24.48255953 | T152: 78.68255953 | U152: 1.188649351 | V152: 79.6 | W152: =Z152/4000 -> 62.86165963 | X152: 8891 | Y152: 14896.2 | Z152: 251446.6385 | AA152: 1818.668391 | AB152: 0.0555 | AC152: 0.0655 | AF152: 2003-03-01 | AG152: 22.90290881 | AH152: 32.90610648 | AI152: 24.22194325 | AJ152: 25.14466385 | AK152: 8.12244898 | AL152: 18.18668391 | AM152: 2.431407066 | AO152: 260.4927526 | AP152: =AP151+AJ152 -> 288.6951139 | BE152: 0.01926208896 | BF152: -0.02844322117
N153: 2003-06-01 | P153: 57 | Q153: 0.374775 | R153: 0.0263 | S153: 24.85733453 | T153: 81.85733453 | U153: 1.258087474 | V153: 79.6 | W153: =Z153/4000 -> 66.55709573 | X153: 9446 | Y153: 15771.9 | Z153: 266228.3829 | AA153: 1843.393611 | AB153: 0.0555 | AC153: =AD153 -> 0.0655 | AD153: 0.0655 | AF153: 2003-06-01 | AG153: 24.08608491 | AH153: 34.23384016 | AI153: =AH153-((AH$20*AS$3)+(AS$4*AH153)+(AM153)+(20%*S153)) -> 25.36304817 | AJ153: 26.62283829 | AK153: 8.12244898 | AL153: 18.43393611 | AM153: 2.489971478 | AO153: 260.4927526 | AP153: =AP152 -> 288.6951139 | BE153: 0.04711037869 | BF153: 0.05878680469
N154: 2003-09-01 | P154: 59.5 | Q154: 0.3912125 | R154: 0.0263 | S154: 25.24854703 | T154: 84.74854703 | U154: 1.321274777 | V154: 80.1 | W154: =Z154/4000 -> 70.48083273 | X154: 10117 | Y154: 16701.7 | Z154: 281923.3309 | AA154: 1868.454977 | AB154: 0.0555 | AC154: =AC153 -> 0.0655 | AF154: 2003-09-01 | AG154: 25.14249214 | AH154: 35.44298418 | AI154: 26.3844509 | AJ154: 28.19233309 | AK154: 8.173469388 | AL154: 18.68454977 | AM154: 2.551104505 | AO154: 260.4927526 | AP154: 288.6951139 | BE154: 0.04027129256 | BF154: 0.05895294796
N155: 2003-12-01 | P155: 62.1 | Q155: 0.4083075 | R155: 0.0263 | S155: 25.65685453 | T155: 87.75685453 | U155: 1.369710053 | V155: 80.3 | W155: =Z155/4000 -> 74.03658752 | X155: 10622 | Y155: 17544.3 | Z155: 296146.3501 | AA155: 1893.857058 | AB155: 0.0555 | AC155: 0.0655 | AF155: 2003-12-01 | AG155: =P155/P$20 -> 26.24115566 | AH155: =(T155/T$20) -> 36.70109891 | AI155: 27.44677516 | AJ155: =Z155/Z$20 -> 29.61463501 | AK155: =V155/V$20 -> 8.193877551 | AL155: =AA155/100 -> 18.93857058 | AM155: 2.614908891 | AO155: 260.4927526 | AP155: 288.6951139 | BE155: 0.04026326931 | BF155: 0.0504499542
N156: 2004-03-01 | P156: 60.8 | Q156: 0.34808 | R156: 0.0229 | S156: 26.00493453 | T156: 86.80493453 | U156: 1.351309541 | V156: 81.1 | W156: =Z156/4000 -> 77.46067894 | X156: 11098 | Y156: 18355.7 | Z156: 309842.7158 | AA156: 1919.604486 | AB156: 0.0555 | AC156: 0.0655 | AF156: 2004-03-01 | AG156: 25.6918239 | AH156: 36.30299314 | AI156: 26.93250891 | AJ156: 30.98427158 | AK156: 8.275510204 | AL156: 19.19604486 | AM156: 2.677377597 | AO156: 286.1845765 | AP156: =AP155+AJ156 -> 319.6793854 | BE156: -0.01873685494 | BF156: 0.04624863916
N157: 2004-06-01 | P157: 60.9 | Q157: 0.3486525 | R157: =R156 -> 0.0229 | S157: 26.35358703 | T157: 87.25358703 | U157: 1.358123993 | V157: 81.3 | W157: =Z157/4000 -> 80.81809468 | X157: 11560 | Y157: 19151.3 | Z157: 323272.3787 | AA157: 1945.701957 | AB157: 0.0605 | AC157: =AD157 -> 0.0705 | AD157: 0.0705 | AF157: 2004-06-01 | AG157: 25.73408019 | AH157: 36.49062566 | AI157: 26.98033418 | AJ157: 32.32723787 | AK157: 8.295918367 | AL157: 19.45701957 | AM157: 2.739949048 | AO157: 286.1845765 | AP157: =AP156 -> 319.6793854 | BE157: 0.001775745014 | BF157: 0.04334348459
N158: 2004-09-01 | P158: 60.9 | Q158: 0.3486525 | R158: 0.0229 | S158: 26.70223953 | T158: 87.60223953 | U158: 1.373439651 | V158: 81.5 | W158: =Z158/4000 -> 84.94650069 | X158: 12191 | Y158: 20129.6 | Z158: 339786.0028 | AA158: 1974.48566 | AB158: 0.0605 | AC158: =AC157 -> 0.0705 | AF158: 2004-09-01 | AG158: 25.73408019 | AH158: 36.63643683 | AI158: 26.98801095 | AJ158: 33.97860028 | AK158: 8.316326531 | AL158: 19.7448566 | AM158: 2.802520499 | AO158: 286.1845765 | AP158: 319.6793854 | BE158: 0.0002845322436 | BF158: 0.05108269413
N159: 2004-12-01 | P159: 62.4 | Q159: 0.35724 | R159: 0.0229 | S159: 27.05947953 | T159: 89.45947953 | U159: 1.418028439 | V159: 82.1 | W159: =Z159/4000 -> 94.61658387 | X159: 13564 | Y159: 22421.1 | Z159: 378466.3355 | AA159: 2003.695174 | AB159: 0.0605 | AC159: 0.0705 | AF159: 2004-12-01 | AG159: 26.36792453 | AH159: 37.41315962 | AI159: 27.59810421 | AJ159: 37.84663355 | AK159: 8.37755102 | AL159: 20.03695174 | AM159: 2.866633119 | AO159: 286.1845765 | AP159: 319.6793854 | BE159: 0.02260608461 | BF159: 0.1138373341
N160: 2005-03-01 | P160: 62.5 | Q160: 0.359375 | R160: 0.023 | S160: 27.41885453 | T160: 89.91885453 | U160: 1.425227762 | V160: 82.7 | W160: =Z160/4000 -> 97.16165355 | X160: 13874 | Y160: 23024.2 | Z160: 388646.6142 | AA160: 2033.336798 | AB160: 0.0605 | AC160: 0.0705 | AF160: 2005-03-01 | AG160: 26.41018082 | AH160: 37.60527644 | AI160: 27.64644599 | AJ160: 38.86466142 | AK160: 8.43877551 | AL160: 20.33336798 | AM160: 2.930848483 | AO160: 312.5947573 | AP160: =AP159+AJ160 -> 358.5440468 | BE160: 0.001751633986 | BF160: 0.02689876946
N161: 2005-06-01 | P161: 63.2 | Q161: 0.3634 | R161: 0.023 | S161: 27.78225453 | T161: 90.98225453 | U161: 1.453352959 | V161: 83 | W161: =Z161/4000 -> 101.9407804 | X161: 14420 | Y161: 24156.7 | Z161: 407763.1216 | AA161: 2063.416925 | AB161: 0.063 | AC161: =AD161 -> 0.073 | AD161: 0.073 | AF161: 2005-06-01 | AG161: 26.70597484 | AH161: 38.05000464 | AI161: 27.93577049 | AJ161: 40.77631216 | AK161: 8.469387755 | AL161: 20.63416925 | AM161: 2.995783059 | AO161: 312.5947573 | AP161: =AP160 -> 358.5440468 | BE161: 0.01046516079 | BF161: 0.04918737676
N162: 2005-09-01 | P162: 63.1 | Q162: 0.362825 | R162: 0.023 | S162: 28.14507953 | T162: 91.24507953 | U162: 1.464860616 | V162: 83.9 | W162: =Z162/4000 -> 112.0695754 | X162: 15861 | Y162: 26556.9 | Z162: 448278.3015 | AA162: 2095.175006 | AB162: 0.063 | AC162: =AC161 -> 0.073 | AF162: 2005-09-01 | AG162: 26.66371855 | AH162: 38.1599216 | AI162: 27.90389394 | AJ162: 44.82783015 | AK162: 8.56122449 | AL162: 20.95175006 | AM162: 3.060614891 | AO162: 312.5947573 | AP162: 358.5440468 | BE162: -0.00114106586 | BF162: 0.09935959796
N163: 2005-12-01 | P163: 64 | Q163: 0.368 | R163: 0.023 | S163: 28.51307953 | T163: 92.51307953 | U163: 1.50160248 | V163: 84.3 | W163: =Z163/4000 -> 116.0042843 | X163: 16408 | Y163: 27489.3 | Z163: 464017.1372 | AA163: 2127.421876 | AB163: 0.063 | AC163: 0.073 | AF163: 2005-12-01 | AG163: =P163/P$20 -> 27.04402516 | AH163: =(T163/T$20) -> 38.69021628 | AI163: 28.2736203 | AJ163: =Z163/Z$20 -> 46.40171372 | AK163: =V163/V$20 -> 8.602040816 | AL163: =AA163/100 -> 21.27421876 | AM163: 3.126371424 | AO163: 312.5947573 | AP163: 358.5440468 | BE163: 0.01324999171 | BF163: 0.03510951956
N164: 2006-03-01 | P164: 65.4 | Q164: 0.4905 | R164: 0.03 | S164: 29.00357953 | T164: 94.40357953 | U164: 1.532170497 | V164: 85 | W164: =Z164/4000 -> 126.4352298 | X164: 17949 | Y164: 29961.1 | Z164: 505740.9192 | AA164: 2160.165059 | AB164: 0.063 | AC164: 0.073 | AF164: 2006-03-01 | AG164: 27.63561321 | AH164: 39.48084885 | AI164: 28.86733261 | AJ164: 50.57409192 | AK164: 8.673469388 | AL164: 21.60165059 | AM164: 3.193566381 | AO164: 340.2303705 | AP164: =AP163+AJ164 -> 409.1181388 | BE164: 0.02099880752 | BF164: 0.08991862288
N165: 2006-06-01 | P165: 67.2 | Q165: 0.504 | R165: 0.03 | S165: 29.50757953 | T165: 96.70757953 | U165: 1.583933798 | V165: 86.2 | W165: =Z165/4000 -> 126.1077594 | X165: 17910 | Y165: 29883.5 | Z165: 504431.0376 | AA165: 2193.412191 | AB165: 0.0655 | AC165: =AD165 -> 0.0755 | AD165: 0.0755 | AF165: 2006-06-01 | AG165: 28.39622642 | AH165: 40.4444127 | AI165: 29.62250954 | AJ165: 50.44310376 | AK165: 8.795918367 | AL165: 21.93412191 | AM165: 3.262610741 | AO165: 340.2303705 | AP165: =AP164 -> 409.1181388 | BE165: 0.02616026006 | BF165: -0.002590025066
N166: 2006-09-01 | P166: 68.1 | Q166: 0.51075 | R166: 0.03 | S166: 30.01832953 | T166: 98.11832953 | U166: 1.621137508 | V166: 86.8 | W166: =Z166/4000 -> 129.7217499 | X166: 19311 | Y166: 30739.9 | Z166: 518886.9996 | AA166: 2228.479363 | AB166: 0.0655 | AC166: =AC165 -> 0.0755 | AF166: 2006-09-01 | AG166: 28.77653302 | AH166: 41.03440735 | AI166: 30.01678535 | AJ166: 51.88869996 | AK166: 8.857142857 | AL166: 22.28479363 | AM166: 3.332579802 | AO166: 340.2303705 | AP166: 409.1181388 | BE166: 0.01331000701 | BF166: 0.02865795506
N167: 2006-12-01 | P167: 69.5 | Q167: 0.52125 | R167: 0.03 | S167: 30.53957953 | T167: 100.0395795 | U167: 1.669285244 | V167: 86.7 | W167: =Z167/4000 -> 143.8498195 | X167: 20505 | Y167: 34087.8 | Z167: 575399.2779 | AA167: 2264.10717 | AB167: 0.0655 | AC167: 0.0755 | AF167: 2006-12-01 | AG167: 29.36812107 | AH167: 41.83789999 | AI167: 30.6124808 | AJ167: 57.53992779 | AK167: 8.846938776 | AL167: 22.6410717 | AM167: 3.403987287 | AO167: 340.2303705 | AP167: 409.1181388 | BE167: 0.01984541107 | BF167: 0.108910569
N168: 2007-03-01 | P168: 71 | Q168: 0.5325 | R168: 0.03 | S168: 31.07207953 | T168: 102.0720795 | U168: 1.705123773 | V168: 86.9 | W168: =Z168/4000 -> 153.7135997 | X168: 21957 | Y168: 36425.2 | Z168: 614854.3989 | AA168: 2300.304577 | AB168: 0.0655 | AC168: 0.0755 | AF168: 2007-03-01 | AG168: 30.00196541 | AH168: 42.68791887 | AI168: 31.24905027 | AJ168: 61.48543989 | AK168: 8.867346939 | AL168: 23.00304577 | AM168: 3.476935941 | AO168: 370.2323359 | AP168: =AP167+AJ168 -> 470.6035787 | BE168: 0.0207944426 | BF168: 0.06856998692
N169: 2007-06-01 | P169: 76 | Q169: 0.57 | R169: 0.03 | S169: 31.64207953 | T169: 107.6420795 | U169: 1.825358565 | V169: 87.9 | W169: =Z169/4000 -> 161.9915116 | X169: 23333 | Y169: 38386.8 | Z169: 647966.0466 | AA169: 2337.08069 | AB169: 0.0705 | AC169: =AD169 -> 0.0805 | AD169: 0.0805 | AF169: 2007-06-01 | AG169: 32.11477987 | AH169: 45.01736792 | AI169: 33.29323547 | AJ169: 64.79660466 | AK169: 8.969387755 | AL169: 23.3708069 | AM169: 3.555021824 | AO169: 370.2323359 | AP169: =AP168 -> 470.6035787 | BE169: 0.06541591447 | BF169: 0.05385282716
N170: 2007-09-01 | P170: 79.5 | Q170: 0.59625 | R170: 0.03 | S170: 32.23832953 | T170: 111.7383295 | U170: 1.918859264 | V170: 88.6 | W170: =Z170/4000 -> 171.4742277 | X170: 24612 | Y170: 40633.9 | Z170: 685896.9109 | AA170: 2377.225472 | AB170: 0.0705 | AC170: =AC169 -> 0.0805 | AF170: 2007-09-01 | AG170: 33.59375 | AH170: 46.73047486 | AI170: 34.73688619 | AJ170: 68.58969109 | AK170: 9.040816327 | AL170: 23.77225472 | AM170: 3.636703767 | AO170: 370.2323359 | AP170: 470.6035787 | BE170: 0.04336168286 | BF170: 0.05853835173
N171: 2007-12-01 | P171: 84.7 | Q171: 0.63525 | R171: 0.03 | S171: 32.87357953 | T171: 117.5735795 | U171: 2.056673775 | V171: 89.5 | W171: =Z171/4000 -> 166.7170448 | X171: 24186 | Y171: 39506.6 | Z171: 666868.1791 | AA171: 2418.059833 | AB171: 0.0705 | AC171: 0.0805 | AF171: 2007-12-01 | AG171: 35.79107704 | AH171: 49.17085502 | AI171: 36.86557649 | AJ171: 66.68681791 | AK171: 9.132653061 | AL171: 24.18059833 | AM171: 3.723728429 | AO171: 370.2323359 | AP171: 470.6035787 | BE171: 0.06128040056 | BF171: -0.02774284526
N172: 2008-03-01 | P172: 85.7 | Q172: 0.64275 | R172: 0.03 | S172: 33.51632953 | T172: 119.2163295 | U172: 2.100648995 | V172: 90.7 | W172: =Z172/4000 -> 142.6547213 | X172: 20636 | Y172: 33804.6 | Z172: 570618.8851 | AA172: 2459.595619 | AB172: 0.0705 | AC172: 0.0805 | AF172: 2008-03-01 | AG172: 36.21363994 | AH172: 49.85787521 | AI172: 37.30851376 | AJ172: 57.06188851 | AK172: 9.255102041 | AL172: 24.59595619 | AM172: 3.811780536 | AO172: 406.4459758 | AP172: =AP171+AJ172 -> 527.6654672 | BE172: 0.01201492856 | BF172: -0.1443303144
N173: 2008-06-01 | P173: 85.5 | Q173: 0.64125 | R173: 0.03 | S173: 34.15757953 | T173: 119.6575795 | U173: 2.111504598 | V173: 91.8 | W173: =Z173/4000 -> 140.0366459 | X173: 20506 | Y173: 33184.2 | Z173: 560146.5838 | AA173: 2501.844879 | AB173: 0.0845 | AC173: =AD173 -> 0.0945 | AD173: 0.0945 | AF173: 2008-06-01 | AG173: 36.12912736 | AH173: 50.0424119 | AI173: 37.26957236 | AJ173: 56.01465838 | AK173: 9.367346939 | AL173: 25.01844879 | AM173: 3.899627155 | AO173: 406.4459758 | AP173: =AP172 -> 527.6654672 | BE173: -0.001043766885 | BF173: -0.0183525319
N174: 2008-09-01 | P174: 83 | Q174: 0.6225 | R174: 0.03 | S174: 34.78007953 | T174: 117.7800795 | U174: 2.066218272 | V174: 92.9 | W174: =Z174/4000 -> 125.357869 | X174: 18068 | Y174: 29705.8 | Z174: 501431.4761 | AA174: 2553.09966 | AB174: 0.0845 | AC174: =AC173 -> 0.0945 | AF174: 2008-09-01 | AG174: 35.07272013 | AH174: 49.25721611 | AI174: 36.3060064 | AJ174: 50.14314761 | AK174: 9.479591837 | AL174: 25.5309966 | AM174: 3.984905158 | AO174: 406.4459758 | AP174: 527.6654672 | BE174: -0.02585395824 | BF174: -0.104820969
N175: 2008-12-01 | P175: 82.3 | Q175: 0.61725 | R175: 0.03 | S175: 35.39732953 | T175: 117.6973295 | U175: 2.062976129 | V175: 92.3 | W175: =Z175/4000 -> 102.429032 | X175: 14418 | Y175: 24272.4 | Z175: 409716.1282 | AA175: 2605.404488 | AB175: 0.0845 | AC175: 0.0945 | AE175: Assumptions | AF175: 2008-12-01 | AG175: 34.7769261 | AH175: 49.22260894 | AI175: 36.06477473 | AJ175: 40.97161282 | AK175: 9.418367347 | AL175: 26.05404488 | AM175: 4.06946395 | AO175: 406.4459758 | AP175: 527.6654672 | BE175: -0.006644401131 | BF175: -0.1829070417
N176: 2009-03-01 | P176: 82.5 | Q176: 0.61875 | R176: 0.03 | S176: 36.01607953 | T176: 118.5160795 | U176: 2.069715834 | V176: 92.6 | W176: =Z176/4000 -> 100.3397202 | X176: 14178 | Y176: 23777.3 | Z176: 401358.8806 | AA176: 2658.780874 | AB176: 0.0845 | AC176: 0.0945 | AE176: Share benchmark ASX Total Return Index. 0.1% brokerage on purchase, 0.1% brokerage on sale, plus 0.33% p.a. allowance for management/administration | AF176: 2009-03-01 | AG176: 34.86143868 | AH176: 49.56502122 | AI176: 36.18497624 | AJ176: 40.13588806 | AK176: 9.448979592 | AL176: 26.58780874 | AM176: 4.154228231 | AO176: 441.3074145 | AP176: =AP175+AJ176 -> 567.8013552 | BE176: 0.003332933862 | BF176: -0.0203976533
N177: 2009-06-01 | P177: 86.9 | Q177: 0.65175 | R177: 0.03 | S177: 36.66782953 | T177: 123.5678295 | U177: 2.185624162 | V177: 92.9 | W177: =Z177/4000 -> 111.6193035 | X177: 15965 | Y177: 26450.2 | Z177: 446477.2142 | AA177: 2713.250771 | AB177: 0.048 | AC177: =AD177 -> 0.058 | AD177: 0.058 | AE177: Property. Price benchmark based on Melbourne prices, Australian Bureau of Statistics. Rental data sourced from RP and APM, current gross rent adjusted for changes in AWOTE. | AF177: 2009-06-01 | AG177: 36.72071541 | AH177: 51.67773113 | AI177: 37.99354271 | AJ177: 44.64772142 | AK177: 9.479591837 | AL177: 27.13250771 | AM177: 4.243513273 | AO177: 441.3074145 | AP177: =AP176 -> 567.8013552 | BE177: 0.04998114304 | BF177: 0.112413941
N178: 2009-09-01 | P178: 92.5 | Q178: 0.69375 | R178: 0.03 | S178: 37.36157953 | T178: 129.8615795 | U178: 2.318365558 | V178: 93.4 | W178: =Z178/4000 -> 135.5537617 | X178: 19405 | Y178: 32121.9 | Z178: 542215.0466 | AA178: 2745.239605 | AB178: 0.048 | AC178: =AC177 -> 0.058 | AE178: Property costs: allowance of 20% gross rent to pay agent fees and cover periods of vacancy. Ongoing maintenance and insurance fees 1.5% p.a. Transaction costs of 5% at time of purchase, 3% at time of sale. | AF178: 2009-09-01 | AG178: 39.08706761 | AH178: 54.30986218 | AI178: 40.28659977 | AJ178: 54.22150466 | AK178: 9.530612245 | AL178: 27.45239605 | AM178: 4.338552012 | AO178: 441.3074145 | AP178: 567.8013552 | BE178: 0.06035386281 | BF178: 0.2144293805
N179: 2009-12-01 | P179: 98.6 | Q179: 0.7395 | R179: 0.03 | S179: 38.10107953 | T179: 136.7010795 | U179: 2.461912427 | V179: 94 | W179: =Z179/4000 -> 140.0847537 | X179: 20125 | Y179: 33195.6 | Z179: 560339.0149 | AA179: 2777.605583 | AB179: 0.048 | AC179: 0.058 | AE179: Interest costs: capitalised cost of interest, based on Standard Variable interest rate (source: ABS and RBA). Other costs set at 0.1% p.a., reflecting costs of Professional Package loan. | AF179: 2009-12-01 | AG179: 41.66470126 | AH179: 57.17023323 | AI179: 42.78334982 | AJ179: 56.03390149 | AK179: 9.591836735 | AL179: 27.77605583 | AM179: 4.439858171 | AO179: 441.3074145 | AP179: 567.8013552 | BE179: 0.0619747028 | BF179: 0.03342579362
N180: 2010-03-01 | P180: 103.3 | Q180: 0.77475 | R180: 0.03 | S180: 38.87582953 | T180: 142.1758295 | U180: 2.584802832 | V180: 95.2 | W180: =Z180/4000 -> 141.8660071 | X180: 20417 | Y180: 33617.7 | Z180: 567464.0284 | AA180: 2810.353151 | AB180: 0.048 | AC180: 0.058 | AF180: 2010-03-01 | AG180: 43.65074686 | AH180: 59.45984744 | AI180: 44.72029431 | AJ180: 56.74640284 | AK180: 9.714285714 | AL180: 28.10353151 | AM180: 4.545993325 | AO180: 484.9581614 | AP180: =AP179+AJ180 -> 624.5477581 | BE180: 0.04527332471 | BF180: 0.01271554061
N181: 2010-06-01 | P181: 106.2 | Q181: 0.7965 | R181: 0.03 | S181: 39.67232953 | T181: 145.8723295 | U181: 2.663937489 | V181: 95.8 | W181: =Z181/4000 -> 125.97905 | X181: 18164 | Y181: 29853 | Z181: 503916.2001 | AA181: 2843.486808 | AB181: 0.064 | AC181: =AD181 -> 0.074 | AD181: 0.074 | AF181: 2010-06-01 | AG181: 44.87617925 | AH181: 61.00577354 | AI181: 45.93596862 | AJ181: 50.39162001 | AK181: 9.775510204 | AL181: 28.43486808 | AM181: 4.655108072 | AO181: 484.9581614 | AP181: =AP180 -> 624.5477581 | BE181: 0.0271839515 | BF181: -0.1119856504
N182: 2010-09-01 | P182: 104.3 | Q182: 0.78225 | R182: 0.03 | S182: 40.45457953 | T182: 144.7545795 | U182: 2.640431452 | V182: 96.3 | W182: =Z182/4000 -> 135.9702736 | X182: 19741 | Y182: 32220.6 | Z182: 543881.0946 | AA182: 2887.92975 | AB182: 0.064 | AC182: =AC181 -> 0.074 | AF182: 2010-09-01 | AG182: 44.07330975 | AH182: 60.53831543 | AI182: 45.22359624 | AJ182: 54.38810946 | AK182: 9.826530612 | AL182: 28.8792975 | AM182: 4.762270672 | AO182: 484.9581614 | AP182: 624.5477581 | BE182: -0.01550794304 | BF182: 0.0793086122
N183: 2010-12-01 | P183: 105.7 | Q183: 0.79275 | R183: 0.03 | S183: 41.24732953 | T183: 146.9473295 | U183: 2.690292979 | V183: 96.9 | W183: =Z183/4000 -> 141.8432192 | X183: 20791 | Y183: 33612.3 | Z183: 567372.8768 | AA183: 2933.067324 | AB183: 0.064 | AC183: 0.074 | AF183: 2010-12-01 | AG183: 44.6648978 | AH183: 61.45535302 | AI183: 45.8368013 | AJ183: 56.73728768 | AK183: 9.887755102 | AL183: 29.33067324 | AM183: 4.870871696 | AO183: 484.9581614 | AP183: 624.5477581 | BE183: 0.01355940518 | BF183: 0.04319286419
N184: 2011-03-01 | P184: 104.7 | Q184: 0.78525 | R184: 0.03 | S184: 42.03257953 | T184: 146.7325795 | U184: 2.675434399 | V184: 98.5 | W184: =Z184/4000 -> 146.2881237 | X184: 21398 | Y184: 34665.6 | Z184: 585152.4947 | AA184: 2978.910387 | AB184: 0.064 | AC184: 0.074 | AF184: 2011-03-01 | AG184: 44.24233491 | AH184: 61.36554168 | AI184: 45.48595883 | AJ184: 58.51524947 | AK184: 10.05102041 | AL184: 29.78910387 | AM184: 4.978445274 | AO184: 529.2004963 | AP184: =AP183+AJ184 -> 683.0630075 | BE184: -0.007654165602 | BF184: 0.0313367428
N185: 2011-06-01 | P185: 103.5 | Q185: 0.77625 | R185: 0.03 | S185: 42.80882953 | T185: 146.3088295 | U185: 2.667288485 | V185: 99.2 | W185: =Z185/4000 -> 140.3257145 | X185: 20375 | Y185: 33252.7 | Z185: 561302.8582 | AA185: 3025.469964 | AB185: 0.068 | AC185: =AD185 -> 0.078 | AD185: 0.078 | AF185: 2011-06-01 | AG185: 43.73525943 | AH185: 61.18832372 | AI185: =AH185-((AH$20*AS$3)+(AS$4*AH185)+(AM185)+(20%*S185)) -> 45.05423895 | AJ185: 56.13028582 | AK185: 10.12244898 | AL185: 30.25469964 | AM185: 5.084785918 | AO185: 529.2004963 | AP185: =AP184 -> 683.0630075 | BE185: -0.00949127808 | BF185: -0.04075798486
N186: 2011-09-01 | P186: 101.3 | Q186: 0.75975 | R186: 0.03 | S186: 43.56857953 | T186: 144.8685795 | U186: 2.640159185 | V186: 99.8 | W186: =Z186/4000 -> 123.922654 | X186: 18077 | Y186: 29365.7 | Z186: 495690.6159 | AA186: 3075.641122 | AB186: 0.068 | AC186: =AC185 -> 0.078 | AF186: 2011-09-01 | AG186: 42.80562107 | AH186: 60.58599177 | AI186: 44.21997001 | AJ186: 49.56906159 | AK186: 10.18367347 | AL186: 30.75641122 | AM186: 5.18886618 | AO186: 529.2004963 | AP186: 683.0630075 | BE186: -0.01851699103 | BF186: -0.1168927636
N187: 2011-12-01 | P187: 100 | Q187: 0.75 | R187: 0.03 | S187: 44.31857953 | T187: 144.3185795 | U187: 2.631936297 | V187: 99.9 | W187: =Z187/4000 -> 126.4622377 | X187: 18414 | Y187: 29967.5 | Z187: 505848.9507 | AA187: 3126.644265 | AB187: 0.068 | AC187: 0.078 | AF187: 2011-12-01 | AG187: 42.25628931 | AH187: 60.35597436 | AI187: 43.74640871 | AJ187: 50.58489507 | AK187: 10.19387755 | AL187: 31.26644265 | AM187: 5.291610763 | AO187: 529.2004963 | AP187: 683.0630075 | BE187: -0.01070921795 | BF187: 0.0204932966
N188: 2012-03-01 | P188: 99.4 | Q188: 0.7455 | R188: 0.03 | S188: 45.06407953 | T188: 144.4640795 | U188: 2.625925307 | V188: 99.9 | W188: =Z188/4000 -> 136.9632348 | X188: 20000 | Y188: 32455.9 | Z188: 547852.9393 | AA188: 3178.493189 | AB188: 0.068 | AC188: 0.078 | AF188: 2012-03-01 | AG188: 42.00275157 | AH188: 60.41682442 | AI188: 43.55359666 | AJ188: 54.78529393 | AK188: 10.19387755 | AL188: 31.78493189 | AM188: 5.393738878 | AO188: 571.2032478 | AP188: =AP187+AJ188 -> 737.8483015 | BE188: -0.004407494537 | BF188: 0.08303662301
N189: 2012-06-01 | P189: 99.3 | Q189: 0.74475 | R189: 0.03 | S189: 45.80882953 | T189: 145.1088295 | U189: 2.649187447 | V189: 100.4 | W189: =Z189/4000 -> 130.4534943 | X189: 18940 | Y189: 30913.3 | Z189: 521813.9774 | AA189: 3231.201921 | AB189: 0.0585 | AC189: =AD189 -> 0.0685 | AD189: 0.0685 | AF189: 2012-06-01 | AG189: 41.96049528 | AH189: 60.68646755 | AI189: 43.5614787 | AJ189: 52.18139774 | AK189: 10.24489796 | AL189: 32.31201921 | AM189: 5.495764249 | AO189: 571.2032478 | AP189: =AP188 -> 737.8483015 | BE189: 0.0001809733539 | BF189: -0.04752910873
N190: 2012-09-01 | P190: 98.6 | Q190: 0.7395 | R190: 0.03 | S190: 46.54832953 | T190: 145.1483295 | U190: 2.643099482 | V190: 101.6 | W190: =Z190/4000 -> 141.8495492 | X190: 20493 | Y190: 33613.8 | Z190: 567398.1967 | AA190: 3277.455577 | AB190: 0.0585 | AC190: =AC189 -> 0.0685 | AF190: 2012-09-01 | AG190: 41.66470126 | AH190: 60.70298699 | AI190: 43.32813119 | AJ190: 56.73981967 | AK190: 10.36734694 | AL190: 32.77455577 | AM190: 5.597070408 | AO190: 571.2032478 | AP190: 737.8483015 | BE190: -0.005356739733 | BF190: 0.08735722165
N191: 2012-12-01 | P191: 100.4 | Q191: 0.753 | R191: 0.03 | S191: 47.30132953 | T191: 147.7013295 | U191: 2.699866112 | V191: 102 | W191: =Z191/4000 -> 151.597702 | X191: 21883 | Y191: 35923.8 | Z191: 606390.8079 | AA191: 3324.37134 | AB191: 0.0585 | AC191: 0.0685 | AF191: 2012-12-01 | AG191: 42.42531447 | AH191: 61.77068598 | AI191: 44.09936667 | AJ191: 60.63908079 | AK191: 10.40816327 | AL191: 33.2437134 | AM191: 5.700225969 | AO191: 571.2032478 | AP191: 737.8483015 | BE191: 0.01779987861 | BF191: 0.06872177499
N192: 2013-03-01 | P192: 100.8 | Q192: 0.756 | R192: 0.03 | S192: 48.05732953 | T192: 148.8573295 | U192: 2.725532585 | V192: 102.4 | W192: =Z192/4000 -> 163.8470367 | X192: 23643 | Y192: 38826.5 | Z192: 655388.1466 | AA192: 3371.958688 | AB192: 0.0585 | AC192: 0.0685 | AF192: 2013-03-01 | AG192: 42.59433962 | AH192: 62.25414076 | AI192: 44.30871671 | AJ192: 65.53881466 | AK192: 10.44897959 | AL192: 33.71958688 | AM192: 5.803792508 | AO192: 613.7975875 | AP192: =AP191+AJ192 -> 803.3871161 | BE192: 0.004747234712 | BF192: 0.08080158558
N193: 2013-06-01 | P193: 102.7 | Q193: 0.7189 | R193: 0.028 | S193: 48.77622953 | T193: 151.4762295 | U193: 2.786876958 | V193: 102.6 | W193: =Z193/4000 -> 159.6717889 | X193: 22855 | Y193: 37837.1 | Z193: 638687.1555 | AA193: 3420.227234 | AB193: 0.052 | AC193: =AD193 -> 0.062 | AD193: 0.062 | AF193: 2013-06-01 | AG193: =P193/P$20 -> 43.39720912 | AH193: =(T193/T$20) -> 63.34940002 | AI193: 45.11086692 | AJ193: =Z193/Z$20 -> 63.86871555 | AK193: =V193/V$20 -> 10.46938776 | AL193: =AA193/100 -> 34.20227234 | AM193: =((SUM(AS$6:AS$8)*AG193)/4)+AM192 -> 5.909311195 | AO193: 613.7975875 | AP193: 803.3871161 | BE193: 0.01810366598 | BF193: -0.02548259565
N194: 2013-09-01 | P194: 105.9 | Q194: 0.7413 | R194: 0.028 | S194: 49.51752953 | T194: 155.4175295 | U194: 2.877648411 | V194: 104 | W194: =Z194/4000 -> 175.8284026 | X194: 25318 | Y194: 41665.7 | Z194: 703313.6106 | AA194: 3463.848555 | AB194: 0.052 | AC194: =AC193 -> 0.062 | AF194: 2013-09-01 | AG194: 44.74941038 | AH194: 64.99770478 | AI194: 46.43617298 | AJ194: 70.33136106 | AK194: =V194/V$20 -> 10.6122449 | AL194: 34.63848555 | AM194: 6.018117708 | AO194: 613.7975875 | AP194: 803.3871161 | BE194: 0.02937886473 | BF194: 0.1011864017
N195: 2013-12-01 | P195: 109.7 | Q195: 0.7679 | R195: =R194 -> 0.028 | S195: 50.28542953 | T195: 159.9854295 | U195: 2.979017505 | V195: 104.8 | W195: =Z195/4000 -> 181.736374 | X195: 26184 | Y195: 43065.7 | Z195: 726945.4962 | AA195: 3508.026219 | AB195: 0.052 | AC195: 0.062 | AF195: 2013-12-01 | AG195: 46.35514937 | AH195: 66.90806211 | AI195: 48.0038252 | AJ195: 72.69454962 | AK195: =V195/V$20 -> 10.69387755 | AL195: 35.08026219 | AM195: 6.130828516 | AO195: 613.7975875 | AP195: 803.3871161 | BE195: 0.03375928984 | BF195: 0.03360077954
N196: 2014-03-01 | P196: 110.7 | Q196: 0.7749 | R196: =R195 -> 0.028 | S196: 51.06032953 | T196: 161.7603295 | U196: 3.024121512 | V196: 105.3 | W196: =Z196/4000 -> 185.4056463 | X196: 26761 | Y196: 43935.2 | Z196: 741622.5851 | AA196: 3552.767322 | AB196: 0.052 | AC196: 0.062 | AF196: 2014-03-01 | AG196: 46.77771226 | AH196: 67.6503492 | AI196: 48.44770256 | AJ196: 74.16225851 | AK196: =V196/V$20 -> 10.74489796 | AL196: 35.52767322 | AM196: 6.244566769 | AO196: =AO195+AG196 -> 660.5752997 | AP196: =AP195+AJ196 -> 877.5493746 | BE196: 0.009246708036 | BF196: 0.02019008167
N197: 2014-06-01 | P197: 112.1 | Q197: 0.7847 | R197: 0.028 | S197: 51.84502953 | T197: 163.9450295 | U197: 3.0755995 | V197: 105.9 | W197: =Z197/4000 -> 186.9666167 | X197: 26887 | Y197: 44305.1 | Z197: 747866.4669 | AA197: 3598.07905 | AB197: 0.0495 | AC197: =AD197 -> 0.0595 | AD197: 0.0595 | AF197: 2014-06-01 | AG197: 47.36930031 | AH197: 68.56402017 | AI197: 49.05271002 | AJ197: 74.78664669 | AK197: =V197/V$20 -> 10.80612245 | AL197: 35.9807905 | AM197: 6.359743446 | AO197: 660.5752997 | AP197: 877.5493746 | BE197: 0.0124878462 | BF197: 0.008419217393
N198: 2014-09-01 | P198: 113.1 | Q198: 0.7917 | R198: 0.028 | S198: 52.63672953 | T198: 165.7367295 | U198: 3.118614769 | V198: 106.1 | W198: =Z198/4000 -> 185.7407127 | X198: 26809 | Y198: 44014.6 | Z198: 742962.8506 | AA198: 3641.801842 | AB198: 0.0495 | AC198: =AC197 -> 0.0595 | AF198: 2014-09-01 | AG198: 47.79186321 | AH198: 69.31333325 | AI198: 49.49750645 | AJ198: 74.29628506 | AK198: =V198/V$20 -> 10.82653061 | AL198: 36.41801842 | AM198: 6.475947569 | AO198: 660.5752997 | AP198: 877.5493746 | BE198: 0.009067723944 | BF198: -0.00655680723
N199: 2014-12-01 | P199: 115.2 | Q199: 0.8064 | R199: 0.028 | S199: 53.44312953 | T199: =S199+P199 -> 168.6431295 | U199: 3.184767808 | V199: 106.3 | W199: =Z199/4000 -> 191.3881847 | X199: 25500 | Y199: 45352.87 | Z199: 765552.7388 | AA199: 3686.055942 | AB199: 0.0495 | AC199: 0.0595 | AF199: 2014-12-01 | AG199: 48.67924528 | AH199: 70.52882889 | AI199: 50.3847405 | AJ199: 76.55527388 | AK199: =V199/V$20 -> 10.84693878 | AL199: 36.86055942 | AM199: 6.594309329 | AO199: 660.5752997 | AP199: 877.5493746 | BE199: 0.01792482322 | BF199: 0.0304051383
N200: 2015-03-01 | P200: 115.9 | Q200: =(P200*R200)/4 -> 0.8113 | R200: =R199 -> 0.028 | S200: =Q200+S199 -> 54.25442953 | T200: =S200+P200 -> 170.1544295 | U200: 3.232052924 | V200: 106.4 | W200: =Z200/4000 -> 211.0050129 | X200: 30306 | Y200: 50001.43 | Z200: 844020.0517 | AA200: 3730.847803 | AB200: 0.0495 | AC200: =AC199 -> 0.0595 | AF200: 2015-03-01 | AG200: 48.97503931 | AH200: 71.16087491 | AI200: 50.71016371 | AJ200: 84.40200517 | AK200: =V200/V$20 -> 10.85714286 | AL200: 37.30847803 | AM200: 6.7133903 | AO200: =AO199+AG200 -> 709.550339 | AP200: =AP199+AJ200 -> 961.9513798 | BE200: 0.006458765215 | BF200: 0.1024975928
N201: 2015-06-01 | P201: 120.8 | Q201: =(P201*R201)/4 -> 0.8456 | R201: 0.028 | S201: =Q201+S200 -> 55.10002953 | T201: 175.9000295 | V201: 107.1 | W201: =Z201/4000 -> 197.0445609 | X201: 29751 | Y201: 46693.25 | Z201: 788178.2437 | AA201: 3776.183963 | AB201: 0.0445 | AC201: =AD201 -> 0.0545 | AD201: 0.0545 | AF201: 2015-06-01 | AG201: 51.04559748 | AH201: 73.56376224 | AI201: 52.72370009 | AJ201: 78.81782437 | AK201: =V201/V$20 -> 10.92857143 | AL201: 37.76183963 | AM201: 6.837505756 | AO201: =AO200 -> 709.550339 | AP201: 961.9513798 | BE201: 0.0397067616 | BF201: -0.06616170778
... 11 more rows

Sheet Sheet2
A1: 2002-03-01 | B1: 16943.21 | C1: 16943.21 | D1: 16943.21 | E1: 16943.21 | F1: - | G1: 0.0052
A2: 2002-06-01 | B2: 16075 | C2: 16075 | D2: 16075 | E2: 16075 | F2: - | G2: -0.042
A3: 2002-09-01 | B3: 15012.1 | C3: 15012.1 | D3: 15012.1 | E3: 15012.1 | F3: - | G3: -0.0418
A4: 2002-12-01 | B4: 15332.3 | C4: 15332.3 | D4: 15332.3 | E4: 15332.3 | F4: - | G4: -0.0164
A5: 2003-03-01 | B5: 14896.2 | C5: 14896.2 | D5: 14896.2 | E5: 14896.2 | F5: - | G5: 0.0393
A6: 2003-06-01 | B6: 15771.9 | C6: 15771.9 | D6: 15771.9 | E6: 15771.9 | F6: - | G6: 0.0116
A7: 2003-09-01 | B7: 16701.7 | C7: 16701.7 | D7: 16701.7 | E7: 16701.7 | F7: - | G7: -0.0025
A8: 2003-12-01 | B8: 17544.3 | C8: 17544.3 | D8: 17544.3 | E8: 17544.3 | F8: - | G8: 0.0376
A9: 2004-03-01 | B9: 18355.7 | C9: 18355.7 | D9: 18355.7 | E9: 18355.7 | F9: - | G9: 0.023
A10: 2004-06-01 | B10: 19151.3 | C10: 19151.3 | D10: 19151.3 | E10: 19151.3 | F10: - | G10: 0.0266
A11: 2004-09-01 | B11: 20129.6 | C11: 20129.6 | D11: 20129.6 | E11: 20129.6 | F11: - | G11: 0.0377
A12: 2004-12-01 | B12: 22421.1 | C12: 22421.1 | D12: 22421.1 | E12: 22421.1 | F12: - | G12: 0.0321
A13: 2005-03-01 | B13: 23024.2 | C13: 23024.2 | D13: 23024.2 | E13: 23024.2 | F13: - | G13: -0.009
A14: 2005-06-01 | B14: 24156.7 | C14: 24156.7 | D14: 24156.7 | E14: 24156.7 | F14: - | G14: 0.0474
A15: 2005-09-01 | B15: 26556.9 | C15: 26556.9 | D15: 26556.9 | E15: 26556.9 | F15: - | G15: 0.0506
A16: 2005-12-01 | B16: 27489.3 | C16: 27489.3 | D16: 27489.3 | E16: 27489.3 | F16: - | G16: 0.0305
A17: 2006-03-01 | B17: 29961.1 | C17: 29961.1 | D17: 29961.1 | E17: 29961.1 | F17: - | G17: 0.0472
A18: 2006-06-01 | B18: 29883.5 | C18: 29883.5 | D18: 29883.5 | E18: 29883.5 | F18: - | G18: 0.0206
A19: 2006-09-01 | B19: 30739.9 | C19: 30739.9 | D19: 30739.9 | E19: 30739.9 | F19: - | G19: 0.0131
A20: 2006-12-01 | B20: 34087.8 | C20: 34087.8 | D20: 34087.8 | E20: 34087.8 | F20: - | G20: 0.0365
A21: 2007-03-01 | B21: 36425.2 | C21: 36425.2 | D21: 36425.2 | E21: 36425.2 | F21: - | G21: 0.0327
A22: 2007-06-01 | B22: 38386.8 | C22: 38386.8 | D22: 38386.8 | E22: 38386.8 | F22: - | G22: -0.0021
A23: 2007-09-01 | B23: 40633.9 | C23: 40633.9 | D23: 40633.9 | E23: 40633.9 | F23: - | G23: 0.0555
A24: 2007-12-01 | B24: 39506.6 | C24: 39506.6 | D24: 39506.6 | E24: 39506.6 | F24: - | G24: -0.0275
A25: 2008-03-01 | B25: 33804.6 | C25: 33804.6 | D25: 33804.6 | E25: 33804.6 | F25: - | G25: -0.0333
A26: 2008-06-01 | B26: 33184.2 | C26: 33184.2 | D26: 33184.2 | E26: 33184.2 | F26: - | G26: -0.0749
A27: 2008-09-01 | B27: 29705.8 | C27: 29705.8 | D27: 29705.8 | E27: 29705.8 | F27: - | G27: -0.0986
A28: 2008-12-01 | B28: 24272.4 | C28: 24272.4 | D28: 24272.4 | E28: 24272.4 | F28: - | G28: -0.0031
A29: 2009-03-01 | B29: 23777.3 | C29: 23777.3 | D29: 23777.3 | E29: 23777.3 | F29: - | G29: 0.0795
A30: 2009-06-01 | B30: 26450.2 | C30: 26450.2 | D30: 26450.2 | E30: 26450.2 | F30: - | G30: 0.0397
A31: 2009-09-01 | B31: 32121.9 | C31: 32121.9 | D31: 32121.9 | E31: 32121.9 | F31: - | G31: 0.0622
A32: 2009-12-01 | B32: 33195.6 | C32: 33195.6 | D32: 33195.6 | E32: 33195.6 | F32: - | G32: 0.037
A33: 2010-03-01 | B33: 33617.7 | C33: 33617.7 | D33: 33617.7 | E33: 33617.7 | F33: - | G33: 0.057
A34: 2010-06-01 | B34: 29853 | C34: 29853 | D34: 29853 | E34: 29853 | F34: - | G34: -0.0263
A35: 2010-09-01 | B35: 32220.6 | C35: 32220.6 | D35: 32220.6 | E35: 32220.6 | F35: - | G35: 0.0457
A36: 2010-12-01 | B36: 33612.3 | C36: 33612.3 | D36: 33612.3 | E36: 33612.3 | F36: - | G36: 0.0362
A37: 2011-03-01 | B37: 34665.6 | C37: 34665.6 | D37: 34665.6 | E37: 34665.6 | F37: - | G37: 0.0062
A38: 2011-06-01 | B38: 33252.7 | C38: 33252.7 | D38: 33252.7 | E38: 33252.7 | F38: - | G38: -0.0185
A39: 2011-09-01 | B39: 29365.7 | C39: 29365.7 | D39: 29365.7 | E39: 29365.7 | F39: - | G39: -0.0619
A40: 2011-12-01 | B40: 29967.5 | C40: 29967.5 | D40: 29967.5 | E40: 29967.5 | F40: - | G40: -0.014
A41: 2012-03-01 | B41: 32455.9 | C41: 32479.7 | D41: 32648.9 | E41: 32406.3 | F41: - | G41: 0.0118
A42: 2012-06-01 | B42: 30913.3 | C42: 30728.7 | D42: 31358.3 | E42: 30040.7 | F42: - | G42: 0.006
A43: 2012-09-01 | B43: 33613.8 | C43: 32863 | D43: 33860.4 | E43: 32575.5 | F43: - | G43: 0.0214
A44: 2012-12-01 | B44: 35923.8 | C44: 34774.5 | D44: 36230.1 | E44: 34729.9 | F44: - | G44: 0.033
A45: 2013-03-01 | B45: 38826.5 | C45: 39714 | D45: 40324.3 | E45: 38518.2 | F45: - | G45: -0.0223
A46: 2013-06-01 | B46: 37837.1 | C46: 38757.1 | D46: 38809.8 | E46: 36491 | F46: - | G46: -0.0237
A47: 2013-09-01 | B47: 41665.7 | C47: 40895.9 | D47: 42426.3 | E47: 40768.2 | F47: - | G47: 0.0216
A48: 2013-12-01 | B48: 43065.7 | C48: 42749.8 | D48: 43187.9 | E48: 40405 | F48: - | G48: 0.0074
A49: 2014-03-01 | B49: 43935.2 | C49: 43916.6 | D49: 44435.4 | E49: 43060.2 | F49: - | G49: 0.0027
A50: 2014-06-01 | B50: 44305.1 | C50: 45013.5 | D50: 45288.7 | E50: 44045.7 | F50: - | G50: -0.0157
A51: 2014-09-01 | B51: 44014.6 | C51: 46556.8 | D51: 47062.4 | E51: 43684.4 | F51: - | G51: -0.0542
A52: 2014-12-01 | B52: 45352.87 | C52: 44469 | D52: 45987.2 | E52: 43047.8 | F52: - | G52: 0.02
A53: 2015-03-01 | B53: 50001.43 | C53: 50070 | D53: 50866.1 | E53: 48725.9 | F53: - | G53: -0.0009
A54: 2015-06-01 | B54: 46693.25 | C54: 49339.4 | D54: 49339.4 | E54: 46107.2 | F54: - | G54: -0.0536
A55: 2015-09-01 | B55: 43586.34 | C55: 44951 | D55: 45291.8 | E55: 42690 | F55: - | G55: -0.0299
A56: 2015-12-01 | B56: 46374 | C56: 45171.3 | D56: 46636.2 | E56: 42926.76 | F56: - | G56: 0.0266
A57: 2016-03-01 | B57: 45067 | C57: 43133.4 | D57: 46227.7 | E57: 43020.3 | F57: - | G57: 0.047
A58: 2016-06-01 | B58: 46804 | C58: 48018.9 | D58: 48144.2 | E58: 45101.2 | F58: - | G58: -0.0252
A59: 2016-09-01 | B59: 49175 | C59: 48989.5 | D59: 49512.5 | E59: 46939.7 | F59: - | G59: 0.0044
A60: 2016-12-01 | B60: 51684 | C60: 49548.7 | D60: 51987.6 | E60: 49035.6 | F60: - | G60: 0.0431
A61: 2017-01-01 | B61: 51275 | C61: 51683.7 | D61: 53158.8 | E61: 51123.9 | F61: - | G61: -0.0079
A62: 2017-02-01 | B62: 51226.8 | C62: 51275.3 | D62: 51728.7 | E62: 51170.4 | F62: - | G62: -0.0009
A63: Highest: 53158.80 | B63: Lowest: 14333.30 | C63: Difference: 38825.50 | D63: Average: 32464.26 | E63: Change %: 203.90
